Workbook

Sheet ТИТУЛ
A1: Муниципальное автономное дошкольное образовательное учреждение
A2: детский сад комбинированного вида №24 "Березка" г. Белебея
A3: муниципального района Белебеевский район Республики Башкортостан
A10: Диагностика индивидуального развития детей 6-7 лет с ТНР
A12: 20__- 20___ учебный год
A14: В соответствии с Федеральной адаптированной образовательной
A15: программой дошкольного образования
A16: Приказ Министерства просвещения РФ от 24.11.2022г.
A21: Педагоги:
A23: Воспитатель:
A24: Воспитатель:
A25: Учитель-логопед:
A26: Муp.руководитель

Sheet ОГЛАВЛЕНИЕ
B1: ОГЛАВЛЕНИЕ:
B2: Кликнув мышкой по соответствующему названию, вы автоматически перейдете в нужный раздел.
A4: наименование вкладки | B4: ТИТУЛЬНЫЙ ЛИСТ
A5: Образовательная область "Речевое развитие"
A6: РР-1 | B6: НАПРАВЛЕНИЕ I. ФОРМИРОВАНИЕ СЛОВАРЯ
A7: РР-2 | B7: НАПРАВЛЕНИЕ 2. ЗВУКОВАЯ КУЛЬТУРА РЕЧИ.
A8: РР-3 | B8: НАПРАВЛЕНИЕ 3. ГРАММАТИЧЕСКИЙ СТРОЙ РЕЧИ.
A9: РР-4 | B9: НАПРАВЛЕНИЕ 4. СВЯЗНАЯ РЕЧЬ.
A10: РР-5 | B10: НАПРАВЛЕНИЕ 5. ПОДГОТОВКА К ОБУЧЕНИЮ ГРАМОТЕ
A11: РР-6 | B11: НАПРАВЛЕНИЕ 6. ИНТЕРЕС К ХУДОЖЕСТВЕННОЙ ЛИТЕРАТУРЕ
A12: ИТОГ РР | B12: Обобщение результатов педагогической диагностики по направлениям ОО "Речевое развитие"
A13: Образовательная область "Познавательное развитие"
A14: ПР-1 | B14: НАПРАВЛЕНИЕ 1. СЕНСОРНЫЕ ЭТАЛОНЫ И ПОЗНАВАТЕЛЬНЫЕ ДЕЙСТВИЯ. ОКРУЖАЮЩИЙ МИР. ПРИРОДА.
A15: ПР-2 | B15: НАПРАВЛЕНИЕ 2. МАТЕМАТИЧЕСКИЕ ПРЕДСТАВЛЕНИЯ
A16: ИТОГ -ПР | B16: Обобщение результатов педагогической диагностики по направлениям ОО "Познавательное развитие"
A17: Образовательная область "Социально-коммуникативное развитие"
A18: СК-1 | B18: НАПРАВЛЕНИЕ 1. СОЦИАЛЬНЫЕ ОТНОШЕНИЯ.
A20: СК-1 | B20: НАПРАВЛЕНИЕ 2. ФОРМИРОВАНИЕ ОСНОВ ГРАЖДАНСТВЕННОСТИ И ПАРТИОТИЗМА.
A22: СК-2 | B22: НАПРАВЛЕНИЕ 3. ТРУДОВОЕ ВОСПИТАНИЕ
A23: СК-3 | B23: НАПРАВЛЕНИЕ 4. ФОРМИРОВАНИЕ ОСНОВ БЕЗОПАСНОГО ПОВЕДЕНИЯ
A24: ИТОГ СК | B24: Обобщение результатов педагогической диагностики по направлениям ОО "Социально-коммуникативное развитие"
A25: Образовательная область "Художественно-эстетическое развитие"
A26: ХЭ-1 | B26: НАПРАВЛЕНИЕ I. ПРИОБЩЕНИЕ К ИСКУССТВУ
A27: ХЭ-2 | B27: НАПРАВЛЕНИЕ 2. КОНСТРУКТИВНАЯ ДЕЯТЕЛЬНОСТЬ
A28: ХЭ-3 | B28: НАПРАВЛЕНИЕ 3. ИЗОБРАЗИТЕЛЬНАЯ ДЕЯТЕЛЬНОСТЬ
A29: ХЭ-4 | B29: НАПРАВЛЕНИЕ 4. МУЗЫКАЛЬНАЯ ДЕЯТЕЛЬНОСТЬ
A30: ХЭ-5 | B30: НАПРАВЛЕНИЕ 5. ТЕАТРАЛИЗОВАННАЯ И КУЛЬТУРНО-ДОСУГОВАЯ ДЕЯТЕЛЬНОСТЬ
A31: ИТОГ ХЭ | B31: Обобщение результатов педагогической диагностики по направлениям ОО "Художественно-эстетическое развитие"
A32: Образовательная область "Физическое развитие"
A33: ФР-1 | B33: НАПРАВЛЕНИЕ I. ОСНОВНАЯ ГИМНАСТИКА. ПОДВИЖНЫЕ И СПОРТИВНЫЕ ИГРЫ. СПОРТИВНЫЕ УПРАЖНЕНИЯ
A34: ФР-2 | B34: НАПРАВЛЕНИЕ 2. ФОРМИРОВАНИЕ ОСНОВ ЗДОРОВОГО ОБРАЗА ЖИЗНИ. АКТИВНЫЙ ОТДЫХ
A35: ИТОГ ФР | B35: Обобщение результатов педагогической диагностики по направлениям ОО «Физическое развитие»
A37: ОБЩИЙ ИТОГ | B37: Обобщение результатов педагогической диагностики по всем образовательным областям

Sheet РР-1
A1: Образовательная область «Речевое развитие»
A2: НАПРАВЛЕНИЕ I. ФОРМИРОВАНИЕ СЛОВАРЯ | AU2: ОГЛАВЛЕНИЕ
A4: №п/п | B4: ФИ ребенка | C4: Использует в речи | G4: Подбирает к разным частям речи | K4: Понимает значение слов в переносном значении | M4: Образует и использует в речи прилагательные | Q4: Подбирает прилагательные обозначающие моральные качества людей | S4: Понимает и образует приставочные глаголы, отражающие увеличение или уменьшение количества | U4: Использует обобщающие слова | AW4: Использует числительные в речи | AY4: среднее значение
C5: слова суменьшительно-ласкт.ссуффикасами | E5: словас увеличительными суффикасами | G5: антонимы | I5: синонимы | M5: притяжательные | O5: относительные | U5: транспорт | AC5: посуда | AG5: овощи | AI5: фрукты | AK5: ягоды | AM5: мебель | AO5: дом.животные | AQ5: Дикие животные
U6: воздушный | W6: наземный | Y6: подземный | AA6: водный | AC6: кухонная | AE6: столовая | AQ6: лесные | AS6: жарких | AU6: севера
C7: н.г. | D7: к.г. | E7: н.г. | F7: к.г. | G7: н.г. | H7: к.г. | I7: н.г. | J7: к.г. | K7: н.г. | L7: к.г. | M7: н.г. | N7: к.г. | O7: н.г. | P7: к.г. | Q7: н.г. | R7: к.г. | S7: н.г. | T7: к.г. | U7: н.г. | V7: к.г. | W7: н.г. | X7: к.г. | Y7: н.г. | Z7: к.г. | AA7: н.г. | AB7: к.г. | AC7: н.г. | AD7: к.г. | AE7: н.г. | AF7: к.г. | AG7: н.г. | AH7: к.г. | AI7: н.г. | AJ7: к.г. | AK7: н.г. | AL7: к.г. | AM7: н.г. | AN7: к.г. | AO7: н.г. | AP7: к.г. | AQ7: н.г. | AR7: к.г. | AS7: н.г. | AT7: к.г. | AU7: н.г. | AV7: к.г. | AW7: н.г. | AX7: к.г. | AY7: н.г. | AZ7: к.г.
A8: 1 | B8: Иванов | C8: 2 | D8: 3 | E8: 4 | F8: 5 | G8: 2 | H8: 3 | I8: 3 | J8: 4 | K8: 3 | L8: 4 | M8: 4 | N8: 5 | O8: 5 | P8: 5 | Q8: 4 | R8: 5 | S8: 3 | T8: 3 | U8: 2 | V8: 3 | W8: 3 | X8: 4 | Y8: 3 | Z8: 4 | AA8: 3 | AB8: 4 | AC8: 4 | AD8: 5 | AE8: 3 | AF8: 5 | AG8: 3 | AH8: 5 | AI8: 3 | AJ8: 4 | AK8: 2 | AL8: 3 | AM8: 3 | AN8: 4 | AO8: 2 | AP8: 4 | AQ8: 2 | AR8: 4 | AS8: 3 | AT8: 4 | AU8: 4 | AV8: 5 | AW8: 3 | AX8: 4 | AY8: =(C8+E8+G8+I8+K8+M8+O8+Q8+S8+U8+W8+Y8+AA8+AC8+AE8+AG8+AI8+AK8+AM8+AO8+AQ8+AS8+AU8+AW8)/24 -> 3.04 | AZ8: =(D8+F8+H8+J8+L8+N8+P8+R8+T8+V8+X8+Z8+AB8+AD8+AF8+AH8+AJ8+AL8+AN8+AP8+AR8+AT8+AV8+AX8)/24 -> 4.13
A9: 2 | B9: Петров | AY9: =(C9+E9+G9+I9+K9+M9+O9+Q9+S9+U9+W9+Y9+AA9+AC9+AE9+AG9+AI9+AK9+AM9+AO9+AQ9+AS9+AU9+AW9)/24 -> 0.00 | AZ9: =(D9+F9+H9+J9+L9+N9+P9+R9+T9+V9+X9+Z9+AB9+AD9+AF9+AH9+AJ9+AL9+AN9+AP9+AR9+AT9+AV9+AX9)/24 -> 0.00
A10: 3 | B10: Сидоров | AY10: 0.00 | AZ10: 0.00
A11: 4 | AY11: 0.00 | AZ11: 0.00
A12: 5 | AY12: 0.00 | AZ12: 0.00
A13: 6 | AY13: 0.00 | AZ13: 0.00
A14: 7 | AY14: 0.00 | AZ14: 0.00
A15: 8 | AY15: 0.00 | AZ15: 0.00
A16: 9 | AY16: 0.00 | AZ16: 0.00
A17: 10 | AY17: 0.00 | AZ17: 0.00
A18: 11 | AY18: 0.00 | AZ18: 0.00
A19: 12 | AY19: 0.00 | AZ19: 0.00
A20: 13 | AY20: 0.00 | AZ20: 0.00
A21: 14 | AY21: 0.00 | AZ21: 0.00
A22: 15 | AY22: 0.00 | AZ22: 0.00
A23: 16 | AY23: 0.00 | AZ23: 0.00
A24: 17 | AY24: 0.00 | AZ24: 0.00
A25: 18 | AY25: 0.00 | AZ25: 0.00
A26: 19 | AY26: 0.00 | AZ26: 0.00
A27: 20 | AY27: 0.00 | AZ27: 0.00
A28: 21 | AY28: 0.00 | AZ28: 0.00
A29: 22 | AY29: 0.00 | AZ29: 0.00
A30: 23 | AY30: 0.00 | AZ30: 0.00
A31: 24 | AY31: 0.00 | AZ31: 0.00
B32: среднее значение: | C32: =(C8+C9+C10+C11+C12+C13+C14+C15+C16+C17+C18+C19+C20+C21+C22+C23+C24+C25+C26+C27+C28+C29+C30+C31)/COUNTA($B$8:$B$31) -> 0.67 | D32: =(D8+D9+D10+D11+D12+D13+D14+D15+D16+D17+D18+D19+D20+D21+D22+D23+D24+D25+D26+D27+D28+D29+D30+D31)/COUNTA($B$8:$B$31) -> 1.00 | E32: 1.33 | F32: 1.67 | G32: 0.67 | H32: 1.00 | I32: 1.00 | J32: 1.33 | K32: 1.00 | L32: 1.33 | M32: 1.33 | N32: 1.67 | O32: 1.67 | P32: 1.67 | Q32: 1.33 | R32: 1.67 | S32: 1.00 | T32: 1.00 | U32: 0.67 | V32: 1.00 | W32: 1.00 | X32: 1.33 | Y32: 1.00 | Z32: 1.33 | AA32: 1.00 | AB32: 1.33 | AC32: 1.33 | AD32: 1.67 | AE32: 1.00 | AF32: 1.67 | AG32: 1.00 | AH32: 1.67 | AI32: 1.00 | AJ32: 1.33 | AK32: 0.67 | AL32: 1.00 | AM32: 1.00 | AN32: 1.33 | AO32: 0.67 | AP32: 1.33 | AQ32: 0.67 | AR32: 1.33 | AS32: 1.00 | AT32: 1.33 | AU32: 1.33 | AV32: 1.67 | AW32: 1.00 | AX32: 1.33 | AY32: =(C32+E32+G32+I32+K32+M32+O32+Q32+S32+U32+W32+Y32+AA32+AC32+AE32+AG32+AI32+AK32+AM32+AO32+AQ32+AS32+AU32+AW32)/24 -> 1.01 | AZ32: =(D32+F32+H32+J32+L32+N32+P32+R32+T32+V32+X32+Z32+AB32+AD32+AF32+AH32+AJ32+AL32+AN32+AP32+AR32+AT32+AV32+AX32)/24 -> 1.38
B36: начало года
C37: всего | D37: норма | E37: ниже нормы | F37: низкий
B38: количество детей | C38: =COUNTA(B8:B31) -> 3 | D38: =COUNTIF(AY8:AY31,">=3,8") -> 0 | E38: =COUNTIFS(AY8:AY31,"<3,7",AY8:AY31,">=2,3") -> 1 | F38: =COUNTIFS(AY8:AY31,"<2,2",AY8:AY31,">0") -> 0
B39: % | C39: 100 | D39: =D38*C39/C38 -> 0 | E39: =E38*C39/C38 -> 33.3 | F39: =F38*C39/C38 -> 0.0
B42: конец года
C43: всего | D43: норма | E43: ниже нормы | F43: низкий
B44: количество детей | C44: =COUNTA(B8:B31) -> 3 | D44: =COUNTIF(AZ8:AZ31,">=3,8") -> 1 | E44: =COUNTIFS(AZ8:AZ31,"<3,7",AZ8:AZ31,">=2,3") -> 0 | F44: =COUNTIFS(AZ8:AZ31,"<2,2",AZ8:AZ31,">0") -> 0
B45: % | C45: 100 | D45: =D44*C45/C44 -> 33.3 | E45: =E44*C45/C44 -> 0.0 | F45: =F44*C45/C44 -> 0.0

Sheet РР-2
B1: НАПРАВЛЕНИЕ 2. ЗВУКОВАЯ КУЛЬТУРА РЕЧИ. | T1: ОГЛАВЛЕНИЕ
B3: №п/п | C3: ФИ ребенка | D3: Умеет произвольно изменять силу голоса в быту и в образовательной деятельности | F3: Контролирует правильность своего звукопроизношения (без напоминания) | H3: Без ошибок воспроизводит слова из трех и более слогов, в т.ч. со стечением согласных | J3: Определяет кол-во слогов в словах из одного, двух, трех слогов | L3: Может подобрать слово с заданным гласным или согласным звуком | N3: На слух определяет характеристику согласных звуков (твердый - мягкий, звонкий - глухой) | P3: Правильно анализирует по звуковому составу слова из трех, четырех, пяти звуков | R3: Определяет кол-во слогов в предложении с предлогами | T3: среднее значение
D5: н.г. | E5: к.г. | F5: н.г. | G5: к.г. | H5: н.г. | I5: к.г. | J5: н.г. | K5: к.г. | L5: н.г. | M5: к.г. | N5: н.г. | O5: к.г. | P5: н.г. | Q5: к.г. | R5: н.г. | S5: к.г. | T5: н.г. | U5: к.г.
B6: 1 | C6: Иванов | D6: 2 | E6: 4 | F6: 3 | G6: 4 | H6: 2 | I6: 3 | J6: 2 | K6: 3 | L6: 4 | M6: 4 | N6: 5 | O6: 5 | P6: 3 | Q6: 5 | R6: 2 | S6: 3 | T6: =(D6+F6+H6+J6+L6+N6+P6+R6)/9 -> 2.56 | U6: =(E6+G6+I6+K6+M6+O6+Q6+S6)/9 -> 3.44
B7: 2 | C7: Петров | T7: =(D7+F7+H7+J7+L7+N7+P7+R7)/9 -> 0.00 | U7: =(E7+G7+I7+K7+M7+O7+Q7+S7)/9 -> 0.00
B8: 3 | C8: Сидоров | T8: 0.00 | U8: 0.00
B9: 4 | T9: 0.00 | U9: 0.00
B10: 5 | T10: 0.00 | U10: 0.00
B11: 6 | T11: 0.00 | U11: 0.00
B12: 7 | T12: 0.00 | U12: 0.00
B13: 8 | T13: 0.00 | U13: 0.00
B14: 9 | T14: 0.00 | U14: 0.00
B15: 10 | T15: 0.00 | U15: 0.00
B16: 11 | T16: 0.00 | U16: 0.00
B17: 12 | T17: 0.00 | U17: 0.00
B18: 13 | T18: 0.00 | U18: 0.00
B19: 14 | T19: 0.00 | U19: 0.00
B20: 15 | T20: 0.00 | U20: 0.00
B21: 16 | T21: 0.00 | U21: 0.00
B22: 17 | T22: 0.00 | U22: 0.00
B23: 18 | T23: 0.00 | U23: 0.00
B24: 19 | T24: 0.00 | U24: 0.00
B25: 20 | T25: 0.00 | U25: 0.00
B26: 21 | T26: 0.00 | U26: 0.00
B27: 22 | T27: 0.00 | U27: 0.00
B28: 23 | T28: 0.00 | U28: 0.00
B29: 24 | T29: 0.00 | U29: 0.00
C30: среднее значение: | D30: =(D6+D7+D8+D9+D10+D11+D12+D13+D14+D15+D16+D17+D18+D19+D20+D21+D22+D23+D24+D25+D26+D27+D28+D29)/COUNTA($C$6:$C$29) -> 0.67 | E30: =(E6+E7+E8+E9+E10+E11+E12+E13+E14+E15+E16+E17+E18+E19+E20+E21+E22+E23+E24+E25+E26+E27+E28+E29)/COUNTA($C$6:$C$29) -> 1.33 | F30: 1.00 | G30: 1.33 | H30: 0.67 | I30: 1.00 | J30: 0.67 | K30: 1.00 | L30: 1.33 | M30: 1.33 | N30: 1.67 | O30: 1.67 | P30: 1.00 | Q30: 1.67 | R30: 0.67 | S30: 1.00 | T30: =(D30+F30+H30+J30+L30+N30+P30+R30)/9 -> 0.85 | U30: =(E30+G30+I30+K30+M30+O30+Q30+S30)/9 -> 1.15
C32: начало года
D33: всего | E33: норма | F33: ниже нормы | G33: низкий
C34: количество детей | D34: =COUNTA(C6:C29) -> 3 | E34: =COUNTIF(T6:T29,">=3,8") -> 0 | F34: =COUNTIFS(T6:T29,"<3,7",T6:T29,">=2,3") -> 1 | G34: =COUNTIFS(T6:T29,"<2,2",T6:T29,">0") -> 0
C35: % | D35: 100 | E35: =E34*D35/D34 -> 0 | F35: =F34*D35/D34 -> 33.3 | G35: =G34*D35/D34 -> 0.0
C37: конец года
D38: всего | E38: норма | F38: ниже нормы | G38: низкий
C39: количество детей | D39: =COUNTA(C5:C28) -> 3 | E39: =COUNTIF(U6:U29,">=3,8") -> 0 | F39: =COUNTIFS(U6:U29,"<3,7",U6:U29,">=2,3") -> 1 | G39: =COUNTIFS(U6:U29,"<2,2",U6:U29,">0") -> 0
C40: % | D40: 100 | E40: =E39*D40/D39 -> 0.0 | F40: =F39*D40/D39 -> 33.3 | G40: =G39*D40/D39 -> 0.0

Sheet РР-3
A1: НАПРАВЛЕНИЕ 3. ГРАММАТИЧЕСКИЙ СТРОЙ РЕЧИ | T1: ОГЛАВЛЕНИЕ
A3: №п/п | B3: ФИ ребенка | C3: Правильно согласует сущ-ые в беспредложных конструкциях и с предлогами | G3: Исользует уменьшительные суффиксы | K3: Согласует существительные в роде, числе, падеже | O3: Использует правильно глаголы, в том числе возвратные, измененяя их по временам | Q3: Умеет распространять простые предложения, используя разные части речи и предлоги | S3: Умеет составлять сложноподчиненные предложения по вопросам, по демонстрации действия, по картине | U3: среднее значение
C4: в единственном числе | E4: во множественном чиле | G4: существительных | I4: прилагательных | K4: с прилагательными | M4: с числительными
C5: н.г. | D5: к.г. | E5: н.г. | F5: к.г. | G5: н.г. | H5: к.г. | I5: н.г. | J5: к.г. | K5: н.г. | L5: к.г. | M5: н.г. | N5: к.г. | O5: н.г. | P5: к.г. | Q5: н.г. | R5: к.г. | S5: н.г. | T5: к.г. | U5: н.г. | V5: к.г.
A6: 1 | B6: Иванов | C6: 2 | D6: 3 | E6: 3 | F6: 4 | G6: 2 | H6: 4 | I6: 3 | J6: 5 | K6: 3 | L6: 4 | M6: 3 | N6: 3 | O6: 4 | P6: 5 | Q6: 3 | R6: 4 | S6: 5 | T6: 5 | U6: =(C6+E6+G6+I6+K6+M6+O6+Q6+S6)/9 -> 3.11 | V6: =(D6+F6+H6+J6+L6+N6+P6+R6+T6)/9 -> 4.11
A7: 2 | B7: Петров | U7: =(C7+E7+G7+I7+K7+M7+O7+Q7+S7)/9 -> 0.00 | V7: =(D7+F7+H7+J7+L7+N7+P7+R7+T7)/9 -> 0.00
A8: 3 | B8: Сидоров | U8: 0.00 | V8: 0.00
A9: 4 | U9: 0.00 | V9: 0.00
A10: 5 | U10: 0.00 | V10: 0.00
A11: 6 | U11: 0.00 | V11: 0.00
A12: 7 | U12: 0.00 | V12: 0.00
A13: 8 | U13: 0.00 | V13: 0.00
A14: 9 | U14: 0.00 | V14: 0.00
A15: 10 | U15: 0.00 | V15: 0.00
A16: 11 | U16: 0.00 | V16: 0.00
A17: 12 | U17: 0.00 | V17: 0.00
A18: 13 | U18: 0.00 | V18: 0.00
A19: 14 | U19: 0.00 | V19: 0.00
A20: 15 | U20: 0.00 | V20: 0.00
A21: 16 | U21: 0.00 | V21: 0.00
A22: 17 | U22: 0.00 | V22: 0.00
A23: 18 | U23: 0.00 | V23: 0.00
A24: 19 | U24: 0.00 | V24: 0.00
A25: 20 | U25: 0.00 | V25: 0.00
A26: 21 | U26: 0.00 | V26: 0.00
A27: 22 | U27: 0.00 | V27: 0.00
A28: 23 | U28: 0.00 | V28: 0.00
A29: 24 | U29: 0.00 | V29: 0.00
B30: среднее значение: | C30: =(C6+C7+C8+C9+C10+C11+C12+C13+C14+C15+C16+C17+C18+C19+C20+C21+C22+C23+C24+C25+C26+C27+C28+C29)/COUNTA($B$6:$B$29) -> 0.67 | D30: =(D6+D7+D8+D9+D10+D11+D12+D13+D14+D15+D16+D17+D18+D19+D20+D21+D22+D23+D24+D25+D26+D27+D28+D29)/COUNTA($B$6:$B$29) -> 1.00 | E30: 1.00 | F30: 1.33 | G30: 0.67 | H30: 1.33 | I30: 1.00 | J30: 1.67 | K30: 1.00 | L30: 1.33 | M30: 1.00 | N30: 1.00 | O30: 1.33 | P30: 1.67 | Q30: 1.00 | R30: 1.33 | S30: 1.67 | T30: 1.67 | U30: =(C30+E30+G30+I30+K30+M30+O30+Q30+S30)/9 -> 1.04 | V30: =(D30+F30+H30+J30+L30+N30+P30+R30+T30)/9 -> 1.37
B33: начало года
C34: всего | D34: норма | E34: ниже нормы | F34: низкий
B35: количество детей | C35: =COUNTA(B6:B29) -> 3 | D35: =COUNTIF(U6:U29,">=3,8") -> 0 | E35: =COUNTIFS(U6:U29,"<3,7",U6:U29,">=2,3") -> 1 | F35: =COUNTIFS(U5:U28,"<2,2",U5:U28,">0") -> 0
B36: % | C36: 100 | D36: =D35*C36/C35 -> 0 | E36: =E35*C36/C35 -> 33.3 | F36: =F35*C36/C35 -> 0.0
B38: конец года
C39: всего | D39: норма | E39: ниже нормы | F39: низкий
B40: количество детей | C40: =COUNTA(B5:B28) -> 3 | D40: =COUNTIF(V6:V29,">=3,8") -> 1 | E40: =COUNTIFS(V6:V29,"<3,7",V6:V29,">=2,3") -> 0 | F40: =COUNTIFS(V6:V29,"<2,2",V6:V29,">0") -> 0
B41: % | C41: 100 | D41: =D40*C41/C40 -> 33.3 | E41: =E40*C41/C40 -> 0.0 | F41: =F40*C41/C40 -> 0.0

Sheet РР-4
A1: НАПРАВЛЕНИЕ 4. СВЯЗНАЯ РЕЧЬ | Z1: ОГЛАВЛЕНИЕ
A3: №п/п | B3: ФИ ребенка | C3: Может внятно и последовательно рассказать | M3: Умеет пересказывать, соблюдая сюжетную линию | Q3: Отвечает на вопросы в организованной деятельности (по сути вопроса, понимая значение вопроса): почему? Зачем? Когда? Откуда? Где? | S3: Аккуратно обращается скнигой, рассматривает иллюстрации, умеет подбирать их к содержанию текста | U3: Правильно отвечает на вопросы по прочитанному/прослушанному тексту, дает характеристику героев | W3: Умеет пересказывать знакомые тексты по плану и от лица героев | Y3: Выразительно рассказывает стихи | AA3: Умеет определить жанр литературного произведения (сказка, рассказ, стихотворение) | AC3: среднее значение
C4: о предмете или объекте | E4: по картине | G4: по серии картинок | I4: из личного опыта | K4: с придумыванием событий (предшествующих или предстоящих) | M4: по тексту прочитанного произведения | O4: изменяя время действия или лицо, от которого идет рассказ
C5: н.г. | D5: к.г. | E5: н.г. | F5: к.г. | G5: н.г. | H5: к.г. | I5: н.г. | J5: к.г. | K5: н.г. | L5: к.г. | M5: н.г. | N5: к.г. | O5: н.г. | P5: к.г. | Q5: н.г. | R5: к.г. | S5: н.г. | T5: к.г. | U5: н.г. | V5: к.г. | W5: н.г. | X5: к.г. | Y5: н.г. | Z5: к.г. | AA5: н.г. | AB5: к.г. | AC5: н.г. | AD5: к.г.
A6: 1 | B6: Иванов | C6: 2 | D6: 3 | E6: 2 | F6: 3 | G6: 4 | H6: 3 | I6: 2 | J6: 3 | K6: 3 | L6: 3 | M6: 2 | N6: 3 | O6: 4 | P6: 5 | Q6: 3 | R6: 4 | S6: 3 | T6: 4 | U6: 3 | V6: 4 | W6: 2 | X6: 3 | Y6: 2 | Z6: 3 | AA6: 3 | AB6: 4 | AC6: =(C6+E6+G6+I6+K6+M6+O6+Q6+S6+U6+W6+Y6+AA6)/13 -> 2.69 | AD6: =(D6+F6+H6+J6+L6+N6+P6+R6+T6+V6+X6+Z6+AB6)/13 -> 3.46
A7: 2 | B7: Петров | AC7: =(C7+E7+G7+I7+K7+M7+O7+Q7+S7+U7+W7+Y7+AA7)/13 -> 0.00 | AD7: =(D7+F7+H7+J7+L7+N7+P7+R7+T7+V7+X7+Z7+AB7)/13 -> 0.00
A8: 3 | B8: Сидоров | AC8: 0.00 | AD8: 0.00
A9: 4 | AC9: 0.00 | AD9: 0.00
A10: 5 | AC10: 0.00 | AD10: 0.00
A11: 6 | AC11: 0.00 | AD11: 0.00
A12: 7 | AC12: 0.00 | AD12: 0.00
A13: 8 | AC13: 0.00 | AD13: 0.00
A14: 9 | AC14: 0.00 | AD14: 0.00
A15: 10 | AC15: 0.00 | AD15: 0.00
A16: 11 | AC16: 0.00 | AD16: 0.00
A17: 12 | AC17: 0.00 | AD17: 0.00
A18: 13 | AC18: 0.00 | AD18: 0.00
A19: 14 | AC19: 0.00 | AD19: 0.00
A20: 15 | AC20: 0.00 | AD20: 0.00
A21: 16 | AC21: 0.00 | AD21: 0.00
A22: 17 | AC22: 0.00 | AD22: 0.00
A23: 18 | AC23: 0.00 | AD23: 0.00
A24: 19 | AC24: 0.00 | AD24: 0.00
A25: 20 | AC25: 0.00 | AD25: 0.00
A26: 21 | AC26: 0.00 | AD26: 0.00
A27: 22 | AC27: 0.00 | AD27: 0.00
A28: 23 | AC28: 0.00 | AD28: 0.00
A29: 24 | AC29: 0.00 | AD29: 0.00
B30: среднее значение: | C30: =(C6+C7+C8+C9+C10+C11+C12+C13+C14+C15+C16+C17+C18+C19+C20+C21+C22+C23+C24+C25+C26+C27+C28+C29)/COUNTA($B$6:$B$29) -> 0.67 | D30: =(D6+D7+D8+D9+D10+D11+D12+D13+D14+D15+D16+D17+D18+D19+D20+D21+D22+D23+D24+D25+D26+D27+D28+D29)/COUNTA($B$6:$B$29) -> 1.00 | E30: 0.67 | F30: 1.00 | G30: 1.33 | H30: 1.00 | I30: 0.67 | J30: 1.00 | K30: 1.00 | L30: 1.00 | M30: 0.67 | N30: 1.00 | O30: 1.33 | P30: 1.67 | Q30: 1.00 | R30: 1.33 | S30: 1.00 | T30: 1.33 | U30: 1.00 | V30: 1.33 | W30: 0.67 | X30: 1.00 | Y30: 0.67 | Z30: 1.00 | AA30: 1.00 | AB30: 1.33 | AC30: =(C30+E30+G30+I30+K30+M30+O30+Q30+S30+U30+W30+Y30+AA30)/13 -> 0.90 | AD30: =(D30+F30+H30+J30+L30+N30+P30+R30+T30+V30+X30+Z30+AB30)/13 -> 1.15
B33: начало года
C34: всего | D34: норма | E34: ниже нормы | F34: низкий
B35: количество детей | C35: =COUNTA(B6:B29) -> 3 | D35: =COUNTIF(AC6:AC29,">=3,8") -> 0 | E35: =COUNTIFS(AC6:AC29,"<3,7",AC6:AC29,">=2,3") -> 1 | F35: =COUNTIFS(AC6:AC29,"<2,2",AC6:AC29,">0") -> 0
B36: % | C36: 100 | D36: =D35*C36/C35 -> 0 | E36: =E35*C36/C35 -> 33.3 | F36: =F35*C36/C35 -> 0.0
B39: конец года
C40: всего | D40: норма | E40: ниже нормы | F40: низкий
B41: количество детей | C41: =COUNTA(B5:B28) -> 3 | D41: =COUNTIF(AD6:AD29,">=3,8") -> 0 | E41: =COUNTIFS(AD6:AD29,"<3,7",AD6:AD29,">=2,3") -> 1 | F41: =COUNTIFS(AD6:AD29,"<2,2",AD6:AD29,">0") -> 0
B42: % | C42: 100 | D42: =D41*C42/C41 -> 0.0 | E42: =E41*C42/C41 -> 33.3 | F42: =F41*C42/C41 -> 0.0

Sheet РР-5
B1: НАПРАВЛЕНИЕ 5. ПОДГОТОВКА К ОБУЧЕНИЮ ГРАМОТЕ | V1: ОГЛАВЛЕНИЕ
B3: №п/п | C3: ФИ ребенка | D3: Умеет правильно называть алфавит | F3: Умеет воспроизводить печатные буквы по образцу или по памяти | H3: Умеет достраивать элементы букв | J3: Умеет читать и понимает (может повторить) | P3: Составляет | T3: Делит на слоги трехсложные слова с открытыми слогами | V3: Умеет разгадывать ребусы | X3: среднее значение
J4: слоги | L4: слова | N4: простые предложения из 2-3 слов | P4: предложения из 2-5 слов | R4: слова из слогов
D5: н.г. | E5: к.г. | F5: н.г. | G5: к.г. | H5: н.г. | I5: к.г. | J5: н.г. | K5: к.г. | L5: н.г. | M5: к.г. | N5: н.г. | O5: к.г. | P5: н.г. | Q5: к.г. | R5: н.г. | S5: к.г. | T5: н.г. | U5: к.г. | V5: н.г. | W5: к.г. | X5: н.г. | Y5: к.г.
B6: 1 | C6: Иванов | D6: 2 | E6: 3 | F6: 2 | G6: 3 | H6: 2 | I6: 3 | J6: 2 | K6: 3 | L6: 2 | M6: 3 | N6: 1 | O6: 2 | P6: 2 | Q6: 3 | R6: 2 | S6: 3 | T6: 2 | U6: 3 | V6: 3 | W6: 4 | X6: =(D6+F6+H6+J6+L6+N6+V6+P6+R6+T6)/10 -> 2.00 | Y6: =(E6+G6+I6+K6+M6+O6+W6+Q6+S6+U6)/10 -> 3.00
B7: 2 | C7: Петров | X7: =(D7+F7+H7+J7+L7+N7+V7+P7+R7+T7)/10 -> 0.00 | Y7: =(E7+G7+I7+K7+M7+O7+W7+Q7+S7+U7)/10 -> 0.00
B8: 3 | C8: Сидоров | X8: 0.00 | Y8: 0.00
B9: 4 | X9: 0.00 | Y9: 0.00
B10: 5 | X10: 0.00 | Y10: 0.00
B11: 6 | X11: 0.00 | Y11: 0.00
B12: 7 | X12: 0.00 | Y12: 0.00
B13: 8 | X13: 0.00 | Y13: 0.00
B14: 9 | X14: 0.00 | Y14: 0.00
B15: 10 | X15: 0.00 | Y15: 0.00
B16: 11 | X16: 0.00 | Y16: 0.00
B17: 12 | X17: 0.00 | Y17: 0.00
B18: 13 | X18: 0.00 | Y18: 0.00
B19: 14 | X19: 0.00 | Y19: 0.00
B20: 15 | X20: 0.00 | Y20: 0.00
B21: 16 | X21: 0.00 | Y21: 0.00
B22: 17 | X22: 0.00 | Y22: 0.00
B23: 18 | X23: 0.00 | Y23: 0.00
B24: 19 | X24: 0.00 | Y24: 0.00
B25: 20 | X25: 0.00 | Y25: 0.00
B26: 21 | X26: 0.00 | Y26: 0.00
B27: 22 | X27: 0.00 | Y27: 0.00
B28: 23 | X28: 0.00 | Y28: 0.00
B29: 24 | X29: 0.00 | Y29: 0.00
C30: среднее значение: | D30: =(D6+D7+D8+D9+D10+D11+D12+D13+D14+D15+D16+D17+D18+D19+D20+D21+D22+D23+D24+D25+D26+D27+D28+D29)/COUNTA($C$6:$C$29) -> 0.67 | E30: =(E6+E7+E8+E9+E10+E11+E12+E13+E14+E15+E16+E17+E18+E19+E20+E21+E22+E23+E24+E25+E26+E27+E28+E29)/COUNTA($C$6:$C$29) -> 1.00 | F30: 0.67 | G30: 1.00 | H30: 0.67 | I30: 1.00 | J30: 0.67 | K30: 1.00 | L30: 0.67 | M30: 1.00 | N30: 0.33 | O30: 0.67 | P30: 0.67 | Q30: 1.00 | R30: 0.67 | S30: 1.00 | T30: 0.67 | U30: 1.00 | V30: 1.00 | W30: 1.33 | X30: =(D30+F30+H30+J30+L30+N30+V30+P30+R30+T30)/10 -> 0.67 | Y30: =(E30+G30+I30+K30+M30+O30+W30+Q30+S30+U30)/10 -> 1.00
C33: начало года
D34: всего | E34: норма | F34: ниже нормы | G34: низкий
C35: количество детей | D35: =COUNTA(C6:C29) -> 3 | E35: =COUNTIF(X6:X29,">=3,8") -> 0 | F35: =COUNTIFS(X6:X29,"<3,7",X6:X29,">=2,3") -> 0 | G35: =COUNTIFS(X6:X29,"<2,2",X6:X29,">0") -> 1
C36: % | D36: 100 | E36: =E35*D36/D35 -> 0 | F36: =F35*D36/D35 -> 0.0 | G36: =G35*D36/D35 -> 33.3
C38: конец года
D39: всего | E39: норма | F39: ниже нормы | G39: низкий
C40: количество детей | D40: =COUNTA(C5:C28) -> 3 | E40: =COUNTIF(Y6:Y29,">=3,8") -> 0 | F40: =COUNTIFS(Y6:Y29,"<3,7",Y6:Y29,">=2,3") -> 1 | G40: =COUNTIFS(Y6:Y29,"<2,2",Y6:Y29,">0") -> 0
C41: % | D41: 100 | E41: =E40*D41/D40 -> 0.0 | F41: =F40*D41/D40 -> 33.3 | G41: =G40*D41/D40 -> 0.0

Sheet РР-6
A1: НАПРАВЛЕНИЕ 6. ИНТЕРЕС К ХУДОЖЕСТВЕННОЙ ЛИТЕРАТУРЕ | AA1: ОГЛАВЛЕНИЕ
A3: №п/п | B3: ФИ ребенка | C3: Проявляет интерес к изданиям познавательного и энциклопедического характера | E3: Сформировано положительное эмоциональне отношение к "чтению с продолжением" (сказка-повесть, цикл рассказов со сквозным персонажем) | G3: Сформированы представления о жанровых, комозиционных и языковых особенностях жанра литературы: литературная сказка, рассказ, стих-ие, басня, пословица, небылица, былина | I3: Умеет пересказывать литературные произведения по ролям, близко к тексту, от лица литературного героя | K3: В пересказах умеет передавать эмоциональное отношение к образам, используя средства языковой выразительности | M3: Составляет повествовательные рассказы | S3: Использует в процессе общения со взрослыми и сверстниками | Y3: Умеет сочинять разнообразные виды творческих рассказов | AA3: Замечает речевые и логические ошибки в рассказах сверстников, доброжелательно и конструктивно исправляет их | AC3: среднее значение
M4: по картине | O4: из личного и коллективного опыты | Q4: по набору игрушек | S4: объяснительную речь | U4: речь-доказательство | W4: речевое планирование
C5: н.г. | D5: к.г. | E5: н.г. | F5: к.г. | G5: н.г. | H5: к.г. | I5: н.г. | J5: к.г. | K5: н.г. | L5: к.г. | M5: н.г. | N5: к.г. | O5: н.г. | P5: к.г. | Q5: н.г. | R5: к.г. | S5: н.г. | T5: к.г. | U5: н.г. | V5: к.г. | W5: н.г. | X5: к.г. | Y5: н.г. | Z5: к.г. | AA5: н.г. | AB5: к.г. | AC5: н.г. | AD5: к.г.
A6: 1 | B6: Иванов | C6: 2 | D6: 3 | E6: 2 | F6: 3 | G6: 3 | H6: 4 | I6: 3 | J6: 4 | K6: 2 | L6: 3 | M6: 2 | N6: 3 | O6: 2 | P6: 4 | Q6: 2 | R6: 3 | S6: 3 | T6: 4 | U6: 3 | V6: 4 | W6: 2 | X6: 3 | Y6: 2 | Z6: 3 | AA6: 4 | AB6: 5 | AC6: =(C6+E6+G6+I6+K6+M6+U6+O6+Q6+S6+W6+Y6+AA6)/13 -> 2.46 | AD6: =(D6+F6+H6+J6+L6+N6+V6+P6+R6+T6+X6+Z6+AB6)/13 -> 3.54
A7: 2 | B7: Петров | AC7: =(C7+E7+G7+I7+K7+M7+U7+O7+Q7+S7+W7+Y7+AA7)/13 -> 0.00 | AD7: =(D7+F7+H7+J7+L7+N7+V7+P7+R7+T7+X7+Z7+AB7)/13 -> 0.00
A8: 3 | B8: Сидоров | AC8: 0.00 | AD8: 0.00
A9: 4 | AC9: 0.00 | AD9: 0.00
A10: 5 | AC10: 0.00 | AD10: 0.00
A11: 6 | AC11: 0.00 | AD11: 0.00
A12: 7 | AC12: 0.00 | AD12: 0.00
A13: 8 | AC13: 0.00 | AD13: 0.00
A14: 9 | AC14: 0.00 | AD14: 0.00
A15: 10 | AC15: 0.00 | AD15: 0.00
A16: 11 | AC16: 0.00 | AD16: 0.00
A17: 12 | AC17: 0.00 | AD17: 0.00
A18: 13 | AC18: 0.00 | AD18: 0.00
A19: 14 | AC19: 0.00 | AD19: 0.00
A20: 15 | AC20: 0.00 | AD20: 0.00
A21: 16 | AC21: 0.00 | AD21: 0.00
A22: 17 | AC22: 0.00 | AD22: 0.00
A23: 18 | AC23: 0.00 | AD23: 0.00
A24: 19 | AC24: 0.00 | AD24: 0.00
A25: 20 | AC25: 0.00 | AD25: 0.00
A26: 21 | AC26: 0.00 | AD26: 0.00
A27: 22 | AC27: 0.00 | AD27: 0.00
A28: 23 | AC28: 0.00 | AD28: 0.00
A29: 24 | AC29: 0.00 | AD29: 0.00
B30: среднее значение: | C30: =(C6+C7+C8+C9+C10+C11+C12+C13+C14+C15+C16+C17+C18+C19+C20+C21+C22+C23+C24+C25+C26+C27+C28+C29)/COUNTA($B$6:$B$29) -> 0.67 | D30: =(D6+D7+D8+D9+D10+D11+D12+D13+D14+D15+D16+D17+D18+D19+D20+D21+D22+D23+D24+D25+D26+D27+D28+D29)/COUNTA($B$6:$B$29) -> 1.00 | E30: 0.67 | F30: 1.00 | G30: 1.00 | H30: 1.33 | I30: 1.00 | J30: 1.33 | K30: 0.67 | L30: 1.00 | M30: 0.67 | N30: 1.00 | O30: 0.67 | P30: 1.33 | Q30: 0.67 | R30: 1.00 | S30: 1.00 | T30: 1.33 | U30: 1.00 | V30: 1.33 | W30: 0.67 | X30: 1.00 | Y30: 0.67 | Z30: 1.00 | AA30: 1.33 | AB30: 1.67 | AC30: 0.82 | AD30: 1.18
B33: начало года
C34: всего | D34: норма | E34: ниже нормы | F34: низкий
B35: количество детей | C35: =COUNTA(B6:B29) -> 3 | D35: =COUNTIF(AC6:AC29,">=3,8") -> 0 | E35: =COUNTIFS(AC6:AC29,"<3,7",AC6:AC29,">=2,3") -> 1 | F35: =COUNTIFS(AC6:AC29,"<2,2",AC6:AC29,">0") -> 0
B36: % | C36: 100 | D36: =D35*C36/C35 -> 0 | E36: =E35*C36/C35 -> 33.3 | F36: =F35*C36/C35 -> 0.0
B38: конец года
C39: всего | D39: норма | E39: ниже нормы | F39: низкий
B40: количество детей | C40: =COUNTA(B5:B28) -> 3 | D40: =COUNTIF(AD6:AD29,">=3,8") -> 0 | E40: =COUNTIFS(AD6:AD29,"<3,7",AD6:AD29,">=2,3") -> 1 | F40: =COUNTIFS(AD6:AD29,"<2,2",AD6:AD29,">0") -> 0
B41: % | C41: 100 | D41: =D40*C41/C40 -> 0.0 | E41: =E40*C41/C40 -> 33.3 | F41: =F40*C41/C40 -> 0.0

Sheet ИТОГ РР
A1: Обобщение результатов педагогической диагностики по направлениям ОО «Речевое развитие»
G3: ОГЛАВЛЕНИЕ
B5: Формирование словаря | C5: Звуковая культура речи | D5: Грамматический строй речи | E5: Связная речь | F5: Подготовка к обучению грамоте | G5: Интерес к художественной литературе | H5: Средний уровень речевого развития
B6: 1 | C6: 2 | D6: 3 | E6: 4 | F6: 5 | G6: 6 | H6: 7
A7: начало | B7: ='РР-1'!$AY$32 -> 1.01 | C7: ='РР-2'!T30 -> 0.85 | D7: ='РР-3'!U30 -> 1.04 | E7: ='РР-4'!AC30 -> 0.90 | F7: ='РР-5'!X30 -> 0.67 | G7: ='РР-6'!AC30 -> 0.82 | H7: =(B7+C7+D7+E7+F7+G7)/6 -> 0.88
A8: конец | B8: ='РР-1'!$AZ$32 -> 1.38 | C8: ='РР-2'!U30 -> 1.15 | D8: ='РР-3'!V30 -> 1.37 | E8: ='РР-4'!AD30 -> 1.15 | F8: ='РР-5'!Y30 -> 1.00 | G8: ='РР-6'!AD30 -> 1.18 | H8: =(B8+C8+D8+E8+F8+G8)/6 -> 1.20
A29: ВЫВОДЫ:
A30: Начало учебного года:
A44: Конец учебного года:

Sheet ПР-1
A1: Образовательная область «Познавательное развитие»
A3: НАПРАВЛЕНИЕ 1. СЕНСОРНЫЕ ЭТАЛОНЫ И ПОЗНАВАТЕЛЬНЫЕ ДЕЙСТВИЯ. ОКРУЖАЮЩИЙ МИР. ПРИРОДА. | AB3: ОГЛАВЛЕНИЕ
A5: №п/п | B5: ФИ ребенка | C5: Называет основные цвета | E5: Называет оттенки цветов | G5: Называет мужские и женские профессии (по 4) | I5: Называет свой адрес, имена родителей | K5: Умеет ориентироваться на плане-схеме группы, участка | M5: Называет и опознает некоторые достопримечательности города | O5: Называет и опознает государтвенные символы (герб, флаг, гимн) и столицу РФ по фото (Кремль, Красная площадь) | Q5: Называет времена года в правильной последовательности (вперед и назад) | S5: Правильно определяет принадлежность явлений природы по сезонам | U5: Знает некоторые сезонные изменения в жизнедеятельности диких животных | W5: Знает некоторые сезонные изменения в росте и развитии растений | Y5: Знает и соблюдает некоторые правила поведения в природе | AA5: Имеет элементарное представление о космосе, планетах, первом космонавте | AC5: Имеет элементарное представление об армии, солдатах, вооружении | AE5: среднее значение
C7: н.г. | D7: к.г. | E7: н.г. | F7: к.г. | G7: н.г. | H7: к.г. | I7: н.г. | J7: к.г. | K7: н.г. | L7: к.г. | M7: н.г. | N7: к.г. | O7: н.г. | P7: к.г. | Q7: н.г. | R7: к.г. | S7: н.г. | T7: к.г. | U7: н.г. | V7: к.г. | W7: н.г. | X7: к.г. | Y7: я | Z7: к.г. | AA7: н.г. | AB7: к.г. | AC7: н.г. | AD7: к.г. | AE7: н.г. | AF7: к.г.
A8: 1 | B8: Иванов | AE8: =(C8+E8+G8+I8+K8+M8+O8+Q8+S8+U8+W8+Y8+AA8+AC8)/14 -> 0.00 | AF8: =(D8+F8+H8+J8+L8+N8+P8+R8+T8+V8+X8+Z8+AB8+AD8)/14 -> 0.00
A9: 2 | B9: Петров | AE9: =(C9+E9+G9+I9+K9+M9+O9+Q9+S9+U9+W9+Y9+AA9+AC9)/14 -> 0.00 | AF9: 0.00
A10: 3 | B10: Сидоров | AE10: 0.00 | AF10: 0.00
A11: 4 | AE11: 0.00 | AF11: 0.00
A12: 5 | AE12: 0.00 | AF12: 0.00
A13: 6 | AE13: 0.00 | AF13: 0.00
A14: 7 | AE14: 0.00 | AF14: 0.00
A15: 8 | AE15: 0.00 | AF15: 0.00
A16: 9 | AE16: 0.00 | AF16: 0.00
A17: 10 | AE17: 0.00 | AF17: 0.00
A18: 11 | AE18: 0.00 | AF18: 0.00
A19: 12 | AE19: 0.00 | AF19: 0.00
A20: 13 | AE20: 0.00 | AF20: 0.00
A21: 14 | AE21: 0.00 | AF21: 0.00
A22: 15 | AE22: 0.00 | AF22: 0.00
A23: 16 | AE23: 0.00 | AF23: 0.00
A24: 17 | AE24: 0.00 | AF24: 0.00
A25: 18 | AE25: 0.00 | AF25: 0.00
A26: 19 | AE26: 0.00 | AF26: 0.00
A27: 20 | AE27: 0.00 | AF27: 0.00
A28: 21 | AE28: 0.00 | AF28: 0.00
A29: 22 | AE29: 0.00 | AF29: 0.00
A30: 23 | AE30: 0.00 | AF30: 0.00
A31: 24 | AE31: 0.00 | AF31: 0.00
B32: среднее значение: | C32: =(C8+C9+C10+C11+C12+C13+C14+C15+C16+C17+C18+C19+C20+C21+C22+C23+C24+C25+C26+C27+C28+C29+C30+C31)/COUNTA($B$8:$B$31) -> 0.00 | D32: =(D8+D9+D10+D11+D12+D13+D14+D15+D16+D17+D18+D19+D20+D21+D22+D23+D24+D25+D26+D27+D28+D29+D30+D31)/COUNTA($B$8:$B$31) -> 0.00 | E32: 0.00 | F32: 0.00 | G32: 0.00 | H32: 0.00 | I32: 0.00 | J32: 0.00 | K32: 0.00 | L32: 0.00 | M32: 0.00 | N32: 0.00 | O32: 0.00 | P32: 0.00 | Q32: 0.00 | R32: 0.00 | S32: 0.00 | T32: 0.00 | U32: 0.00 | V32: 0.00 | W32: 0.00 | X32: 0.00 | Y32: 0.00 | Z32: 0.00 | AA32: 0.00 | AB32: 0.00 | AC32: 0.00 | AD32: 0.00 | AE32: 0.00 | AF32: 0.00
B36: начало года
C37: всего | D37: норма | E37: ниже нормы | F37: низкий
B38: количество детей | C38: =COUNTA(B8:B31) -> 3 | D38: =COUNTIF(AE8:AE31,">=3,8") -> 0 | E38: =COUNTIFS(AE8:AE31,"<3,7",AE8:AE31,">=2,3") -> 0 | F38: =COUNTIFS(AE8:AE31,"<2,2",AE8:AE31,">0") -> 0
B39: % | C39: 100 | D39: =D38*C39/C38 -> 0 | E39: =E38*C39/C38 -> 0.0 | F39: =F38*C39/C38 -> 0.0
B42: конец года
C43: всего | D43: норма | E43: ниже нормы | F43: низкий
B44: количество детей | C44: =COUNTA(B8:B31) -> 3 | D44: =COUNTIF(AF8:AF31,">=3,8") -> 0 | E44: =COUNTIFS(AF8:AF31,"<3,7",AF8:AF31,">=2,3") -> 0 | F44: =COUNTIFS(AF8:AF31,"<2,2",AF8:AF31,">0") -> 0
B45: % | C45: 100 | D45: =D44*C45/C44 -> 0.0 | E45: =E44*C45/C44 -> 0.0 | F45: =F44*C45/C44 -> 0.0

Sheet ПР-2
A1: НАПРАВЛЕНИЕ 2. МАТЕМАТИЧЕСКИЕ ПРЕДСТАВЛЕНИЯ | AM1: ОГЛАВЛЕНИЕ
A3: №п/п | B3: ФИ ребенка | C3: Владеет навыком количественного счета до 10 | G3: Владеет навыком порядкового счета до 10 | K3: Знает и называет цифры от 0 до 9 | M3: Называет предыдущее и последующее число в заданном ряду | O3: Может увеличивать и уменьшать заданные чисоа на 1 | Q3: Умеет раскладывать заданное число на 2 меньших | S3: Умеет придумывать и решать задачи на сложение и вычитание до 10 | U3: Умеет пользоваться математическими знаками +,-,= | W3: Называет геометрические фигуры: квадрат, прямоугольник, треугольник, круг, овал; объемные геометрические формы: куб, шар, цилиндр | Y3: Оринетируется на плоскости и в пространстве (ввеху, внизу, слева, справа, выше, ниже, левее, правее) | AA3: Ориентируется на плане, схеме группы/участка | AC3: Называет дни недели и месяцы года | AE3: Умеет определять время по часам | AG3: Сравнивает предметы с помощью условной меры по длине, ширине, высоте, толщине | AI3: Умеет группировать предметы по трем-четырем признакам | AK3: Умеет делить целое на две, четыре, восемь равных частей, правильно называет части | AM3: среднее значение
C4: в прямом порядке | E4: в обратном порядке | G4: в прямом порядке | I4: в обратном порядке
C5: н.г. | D5: к.г. | E5: н.г. | F5: к.г. | G5: н.г. | H5: к.г. | I5: н.г. | J5: к.г. | K5: н.г. | L5: к.г. | M5: н.г. | N5: к.г. | O5: н.г. | P5: к.г. | Q5: н.г. | R5: к.г. | S5: н.г. | T5: к.г. | U5: н.г. | V5: к.г. | W5: н.г. | X5: к.г. | Y5: н.г. | Z5: к.г. | AA5: н.г. | AB5: к.г. | AC5: н.г. | AD5: к.г. | AE5: н.г. | AF5: к.г. | AG5: н.г. | AH5: к.г. | AI5: н.г. | AJ5: к.г. | AK5: н.г. | AL5: к.г. | AM5: н.г. | AN5: к.г.
A6: 1 | B6: Иванов | C6: 2 | D6: 3 | E6: 2 | F6: 3 | G6: 4 | H6: 5 | I6: 3 | J6: 5 | K6: 3 | L6: 4 | M6: 2 | N6: 3 | O6: 3 | P6: 4 | Q6: 4 | R6: 5 | S6: 4 | T6: 5 | U6: 3 | V6: 5 | W6: 2 | X6: 4 | Y6: 3 | Z6: 4 | AA6: 3 | AB6: 5 | AC6: 3 | AD6: 4 | AE6: 2 | AF6: 3 | AG6: 2 | AH6: 3 | AI6: 2 | AJ6: 3 | AK6: 3 | AL6: 4 | AM6: =(C6+E6+G6+I6+K6+M6+O6+Q6+S6+U6+W6+Y6+AA6+AC6+AE6+AG6+AI6+AK6)/18 -> 2.78 | AN6: =(D6+F6+H6+J6+L6+N6+P6+R6+T6+V6+X6+Z6+AB6+AD6+AF6+AH6+AJ6+AL6)/18 -> 4.00
A7: 2 | B7: Петров | AM7: =(C7+E7+G7+I7+K7+M7+O7+Q7+S7+U7+W7+Y7+AA7+AC7+AE7+AG7+AI7+AK7)/18 -> 0.00 | AN7: 0.00
A8: 3 | B8: Сидоров | AM8: 0.00 | AN8: 0.00
A9: 4 | AM9: 0.00 | AN9: 0.00
A10: 5 | AM10: 0.00 | AN10: 0.00
A11: 6 | AM11: 0.00 | AN11: 0.00
A12: 7 | AM12: 0.00 | AN12: 0.00
A13: 8 | AM13: 0.00 | AN13: 0.00
A14: 9 | AM14: 0.00 | AN14: 0.00
A15: 10 | AM15: 0.00 | AN15: 0.00
A16: 11 | AM16: 0.00 | AN16: 0.00
A17: 12 | AM17: 0.00 | AN17: 0.00
A18: 13 | AM18: 0.00 | AN18: 0.00
A19: 14 | AM19: 0.00 | AN19: 0.00
A20: 15 | AM20: 0.00 | AN20: 0.00
A21: 16 | AM21: 0.00 | AN21: 0.00
A22: 17 | AM22: 0.00 | AN22: 0.00
A23: 18 | AM23: 0.00 | AN23: 0.00
A24: 19 | AM24: 0.00 | AN24: 0.00
A25: 20 | AM25: 0.00 | AN25: 0.00
A26: 21 | AM26: 0.00 | AN26: 0.00
A27: 22 | AM27: 0.00 | AN27: 0.00
A28: 23 | AM28: 0.00 | AN28: 0.00
A29: 24 | AM29: 0.00 | AN29: 0.00
B30: среднее значение: | C30: =(C6+C7+C8+C9+C10+C11+C12+C13+C14+C15+C16+C17+C18+C19+C20+C21+C22+C23+C24+C25+C26+C27+C28+C29)/COUNTA($B$6:$B$29) -> 0.67 | D30: =(D6+D7+D8+D9+D10+D11+D12+D13+D14+D15+D16+D17+D18+D19+D20+D21+D22+D23+D24+D25+D26+D27+D28+D29)/COUNTA($B$6:$B$29) -> 1.00 | E30: 0.67 | F30: 1.00 | G30: 1.33 | H30: 1.67 | I30: 1.00 | J30: 1.67 | K30: 1.00 | L30: 1.33 | M30: 0.67 | N30: 1.00 | O30: 1.00 | P30: 1.33 | Q30: 1.33 | R30: 1.67 | S30: 1.33 | T30: 1.67 | U30: 1.00 | V30: 1.67 | W30: 0.67 | X30: 1.33 | Y30: 1.00 | Z30: 1.33 | AA30: 1.00 | AB30: 1.67 | AC30: 1.00 | AD30: 1.33 | AE30: 0.67 | AF30: 1.00 | AG30: 0.67 | AH30: 1.00 | AI30: 0.67 | AJ30: 1.00 | AK30: 1.00 | AL30: 1.33 | AM30: 0.93 | AN30: 1.33
B33: начало года
C34: всего | D34: норма | E34: ниже нормы | F34: низкий
B35: количество детей | C35: =COUNTA(B6:B29) -> 3 | D35: =COUNTIF(AM6:AM29,">=3,8") -> 0 | E35: =COUNTIFS(AM6:AM29,"<3,7",AM6:AM29,">=2,3") -> 1 | F35: =COUNTIFS(AM6:AM29,"<2,2",AM6:AM29,">0") -> 0
B36: % | C36: 100 | D36: =D35*C36/C35 -> 0 | E36: =E35*C36/C35 -> 33.3 | F36: =F35*C36/C35 -> 0.0
B39: конец года
C40: всего | D40: норма | E40: ниже нормы | F40: низкий
B41: количество детей | C41: =COUNTA(B5:B28) -> 3 | D41: =COUNTIF(AN6:AN29,">=3,8") -> 1 | E41: =COUNTIFS(AN6:AN29,"<3,7",AN6:AN29,">=2,3") -> 0 | F41: =COUNTIFS(AN6:AN29,"<2,2",AN6:AN29,">0") -> 0
B42: % | C42: 100 | D42: =D41*C42/C41 -> 33.3 | E42: =E41*C42/C41 -> 0.0 | F42: =F41*C42/C41 -> 0.0

Sheet ИТОГ ПР
A1: Обобщение результатов педагогической диагностики по направлениям
A2: ОО «Познавательное развитие»
D3: ОГЛАВЛЕНИЕ
B4: Сенсорные эталоны и познавательные действия. Окружающий мир. Природа. | C4: Математические представления | D4: Средний уровень развития
B5: ФЦКМ | C5: ФЭМП | D5: 3
A6: начало | B6: ='ПР-1'!AE32 -> 0.00 | C6: ='ПР-2'!AM30 -> 0.93 | D6: =(B6+C6)/2 -> 0.46
A7: конец | B7: ='ПР-1'!AF32 -> 0.00 | C7: ='ПР-2'!AN30 -> 1.33 | D7: =(B7+C7)/2 -> 0.67
A24: ВЫВОДЫ:
A25: Начало учебного года:
A36: Конец учебного года:

Sheet СК-1
A1: Образовательная область «Социально-коммуникативное развитие»
A2: НАПРАВЛЕНИЕ 1,2. СОЦИАЛЬНЫЕ ОТНОШЕНИЯ. ФОРМИРОВАНИЕ ОСНОВ ГРАЖДАНСТВЕННОСТИ И ПАТРИОТИЗМА. | T2: ОГЛАВЛЕНИЕ
A4: №п/п | B4: ФИ ребенка | C4: Понимает эмоциональное состояние детей и взрослых, умеет выражать сочувствие и оказывать помощь в социально приемлимом виде | E4: Правильно определяет мужские и женские профессии и атрибуты к ним | G4: Может назвать три (и более) достопримечательности родного города | I4: Может организовать настольно-печатные, подвижные и сюжетные игры и умеет соблюдать правила | K4: Соблюдает последовательность трудовых операций: при подготовке к занятиям, поливе растений, уборке снега/песка и т.д. | M4: Соблюдает правила безопасного поведения (и может рассказать о них) | U4: среднее значение
M5: в группе | O5: на прогулке | Q5: с незнакомыми людьми | S5: с бродячими животными
C6: н.г. | D6: к.г. | E6: н.г. | F6: к.г. | G6: н.г. | H6: к.г. | I6: н.г. | J6: к.г. | K6: н.г. | L6: к.г. | M6: н.г. | N6: к.г. | O6: н.г. | P6: к.г. | Q6: н.г. | R6: к.г. | S6: н.г. | T6: к.г. | U6: н.г. | V6: к.г.
A7: 1 | B7: Иванов | C7: 2 | D7: 2 | E7: 3 | F7: 2 | G7: 3 | H7: 4 | I7: 3 | J7: 4 | K7: 2 | L7: 3 | M7: 2 | N7: 3 | O7: 2 | P7: 3 | Q7: 2 | R7: 3 | S7: 2 | T7: 3 | U7: =(C7+E7+G7+I7+K7+M7+O7+Q7+S7)/9 -> 2.33 | V7: =(D7+F7+H7+J7+L7+N7+P7+R7+T7)/9 -> 3.00
A8: 2 | B8: Петров | U8: =(C8+E8+G8+I8+K8+M8+O8+Q8+S8)/9 -> 0.00 | V8: 0.00
A9: 3 | B9: Сидоров | U9: 0.00 | V9: 0.00
A10: 4 | U10: 0.00 | V10: 0.00
A11: 5 | U11: 0.00 | V11: 0.00
A12: 6 | U12: 0.00 | V12: 0.00
A13: 7 | U13: 0.00 | V13: 0.00
A14: 8 | U14: 0.00 | V14: 0.00
A15: 9 | U15: 0.00 | V15: 0.00
A16: 10 | U16: 0.00 | V16: 0.00
A17: 11 | U17: 0.00 | V17: 0.00
A18: 12 | U18: 0.00 | V18: 0.00
A19: 13 | U19: 0.00 | V19: 0.00
A20: 14 | U20: 0.00 | V20: 0.00
A21: 15 | U21: 0.00 | V21: 0.00
A22: 16 | U22: 0.00 | V22: 0.00
A23: 17 | U23: 0.00 | V23: 0.00
A24: 18 | U24: 0.00 | V24: 0.00
A25: 19 | U25: 0.00 | V25: 0.00
A26: 20 | U26: 0.00 | V26: 0.00
A27: 21 | U27: 0.00 | V27: 0.00
A28: 22 | U28: 0.00 | V28: 0.00
A29: 23 | U29: 0.00 | V29: 0.00
A30: 24 | U30: 0.00 | V30: 0.00
B31: среднее значение: | C31: =(C7+C8+C9+C10+C11+C12+C13+C14+C15+C16+C17+C18+C19+C20+C21+C22+C23+C24+C25+C26+C27+C28+C29+C30)/COUNTA($B$7:$B$30) -> 0.67 | D31: =(D7+D8+D9+D10+D11+D12+D13+D14+D15+D16+D17+D18+D19+D20+D21+D22+D23+D24+D25+D26+D27+D28+D29+D30)/COUNTA($B$7:$B$30) -> 0.67 | E31: 1.00 | F31: 0.67 | G31: 1.00 | H31: 1.33 | I31: 1.00 | J31: 1.33 | K31: 0.67 | L31: 1.00 | M31: 0.67 | N31: 1.00 | O31: 0.67 | P31: 1.00 | Q31: 0.67 | R31: 1.00 | S31: 0.67 | T31: 1.00 | U31: 0.78 | V31: 1.00
B33: начало года
C34: всего | D34: норма | E34: ниже нормы | F34: низкий
B35: количество детей | C35: =COUNTA(B7:B30) -> 3 | D35: =COUNTIF(U7:U30,">=3,8") -> 0 | E35: =COUNTIFS(U7:U30,"<3,7",U7:U30,">=2,3") -> 1 | F35: =COUNTIFS(U7:U30,"<2,2",U7:U30,">0") -> 0
B36: % | C36: 100 | D36: =D35*C36/C35 -> 0 | E36: =E35*C36/C35 -> 33.3 | F36: =F35*C36/C35 -> 0.0
B38: конец года
C39: всего | D39: норма | E39: ниже нормы | F39: низкий
B40: количество детей | C40: =COUNTA(B6:B29) -> 3 | D40: =COUNTIF(V7:V30,">=3,8") -> 0 | E40: =COUNTIFS(V7:V30,"<3,7",V7:V30,">=2,3") -> 1 | F40: =COUNTIFS(V7:V30,"<2,2",V7:V30,">0") -> 0
B41: % | C41: 100 | D41: =D40*C41/C40 -> 0.0 | E41: =E40*C41/C40 -> 33.3 | F41: =F40*C41/C40 -> 0.0

Sheet СК-2
A1: НАПРАВЛЕНИЕ 3. ТРУДОВОЕ ВОСПИТАНИЕ
L2: ОГЛАВЛЕНИЕ
A4: №п/п | B4: ФИ ребенка | C4: Применяет в игровой деятельности основные экономические понятия и категории (деньги, цена, товар, семейный бюджет и пр.) | E4: Осознаёт и соизмеряет свои потребности и возможности | G4: Добросовестно выполняет обязанности дежурного, оказывает сверстнику посильную помощь | I4: Умеет планировать трудовую деятельность | K4: Проявляет интерес к различным профессиям, в частности к профессиям родителей и месту их работы. | M4: среднее значение
C6: н.г. | D6: к.г. | E6: н.г. | F6: к.г. | G6: н.г. | H6: к.г. | I6: н.г. | J6: к.г. | K6: н.г. | L6: к.г. | M6: н.г. | N6: к.г.
A7: 1 | B7: Иванов | C7: 2 | D7: 3 | E7: 3 | F7: 4 | G7: 3 | H7: 4 | I7: 2 | J7: 3 | K7: 3 | L7: 4 | M7: =(C7+E7+G7+I7+K7)/5 -> 2.60 | N7: =(D7+F7+H7+J7+L7)/5 -> 3.60
A8: 2 | B8: Петров | M8: =(C8+E8+G8+I8+K8)/5 -> 0.00 | N8: 0.00
A9: 3 | B9: Сидоров | M9: 0.00 | N9: 0.00
A10: 4 | M10: 0.00 | N10: 0.00
A11: 5 | M11: 0.00 | N11: 0.00
A12: 6 | M12: 0.00 | N12: 0.00
A13: 7 | M13: 0.00 | N13: 0.00
A14: 8 | M14: 0.00 | N14: 0.00
A15: 9 | M15: 0.00 | N15: 0.00
A16: 10 | M16: 0.00 | N16: 0.00
A17: 11 | M17: 0.00 | N17: 0.00
A18: 12 | M18: 0.00 | N18: 0.00
A19: 13 | M19: 0.00 | N19: 0.00
A20: 14 | M20: 0.00 | N20: 0.00
A21: 15 | M21: 0.00 | N21: 0.00
A22: 16 | M22: 0.00 | N22: 0.00
A23: 17 | M23: 0.00 | N23: 0.00
A24: 18 | M24: 0.00 | N24: 0.00
A25: 19 | M25: 0.00 | N25: 0.00
A26: 20 | M26: 0.00 | N26: 0.00
A27: 21 | M27: 0.00 | N27: 0.00
A28: 22 | M28: 0.00 | N28: 0.00
A29: 23 | M29: 0.00 | N29: 0.00
A30: 24 | M30: 0.00 | N30: 0.00
B31: среднее значение: | C31: =(C7+C8+C9+C10+C11+C12+C13+C14+C15+C16+C17+C18+C19+C20+C21+C22+C23+C24+C25+C26+C27+C28+C29+C30)/COUNTA($B$7:$B$30) -> 0.67 | D31: =(D7+D8+D9+D10+D11+D12+D13+D14+D15+D16+D17+D18+D19+D20+D21+D22+D23+D24+D25+D26+D27+D28+D29+D30)/COUNTA($B$7:$B$30) -> 1.00 | E31: 1.00 | F31: 1.33 | G31: 1.00 | H31: 1.33 | I31: 0.67 | J31: 1.00 | K31: 1.00 | L31: 1.33 | M31: 0.87 | N31: 1.20
B33: начало года
C34: всего | D34: норма | E34: ниже нормы | F34: низкий
B35: количество детей | C35: =COUNTA(B7:B30) -> 3 | D35: =COUNTIF(M7:M30,">=3,8") -> 0 | E35: =COUNTIFS(M7:M30,"<3,7",M7:M30,">=2,3") -> 1 | F35: =COUNTIFS(M7:M30,"<2,2",M7:M30,">0") -> 0
B36: % | C36: 100 | D36: =D35*C36/C35 -> 0 | E36: =E35*C36/C35 -> 33.3 | F36: =F35*C36/C35 -> 0.0
B38: конец года
C39: всего | D39: норма | E39: ниже нормы | F39: низкий
B40: количество детей | C40: =COUNTA(B6:B29) -> 3 | D40: =COUNTIF(N7:N30,">=3,8") -> 0 | E40: =COUNTIFS(N7:N30,"<3,7",N7:N30,">=2,3") -> 1 | F40: =COUNTIFS(N7:N30,"<2,2",N7:N30,">0") -> 0
B41: % | C41: 100 | D41: =D40*C41/C40 -> 0.0 | E41: =E40*C41/C40 -> 33.3 | F41: =F40*C41/C40 -> 0.0

Sheet СК-3
A1: НАПРАВЛЕНИЕ 4. ФОРМИРОВАНИЕ ОСНОВ БЕЗОПАСНОГО ПОВЕДЕНИЯ | R1: ОГЛАВЛЕНИЕ
A3: №п/п | B3: ФИ ребенка | C3: Знает правила безопасного обращения с некоторыми электроприборами | E3: Знает некоторые правила безопасного поведения с огнем | G3: Имеет элементарные представления о безопасности дорожного движения | O3: Правильно называет свой домашний адрес, телефон родителя, Ф.И.О. родителя (родителей, законных представителей) | Q3: Соблюдает правила этикета за столом, при встрече и прощании, при просьбе | S3: среднее значение
G4: Определяет назначение некоторых дорожных знаков | I4: Называет правила перехода через дорогу по регулируемому и нерегулируемому пешеходному переходу | K4: Называет правила пользования общественным транспортом | M4: Называет правила безопасной поездки в личном автомобиле
C5: н.г. | D5: к.г. | E5: н.г. | F5: к.г. | G5: н.г. | H5: к.г. | I5: н.г. | J5: к.г. | K5: н.г. | L5: к.г. | M5: н.г. | N5: к.г. | O5: н.г. | P5: к.г. | Q5: н.г. | R5: к.г. | S5: н.г. | T5: к.г.
A6: 1 | B6: Иванов | C6: 2 | D6: 3 | E6: 2 | F6: 3 | G6: 3 | H6: 4 | I6: 3 | J6: 4 | K6: 3 | L6: 4 | M6: 2 | N6: 3 | O6: 2 | P6: 3 | Q6: 3 | R6: 2 | S6: =(C6+E6+G6+I6+K6+M6+O6+Q6)/8 -> 2.50 | T6: =(D6+F6+H6+J6+L6+N6+P6+R6)/8 -> 3.25
A7: 2 | B7: Петров | S7: =(C7+E7+G7+I7+K7+M7+O7+Q7)/8 -> 0.00 | T7: 0.00
A8: 3 | B8: Сидоров | S8: 0.00 | T8: 0.00
A9: 4 | S9: 0.00 | T9: 0.00
A10: 5 | S10: 0.00 | T10: 0.00
A11: 6 | S11: 0.00 | T11: 0.00
A12: 7 | S12: 0.00 | T12: 0.00
A13: 8 | S13: 0.00 | T13: 0.00
A14: 9 | S14: 0.00 | T14: 0.00
A15: 10 | S15: 0.00 | T15: 0.00
A16: 11 | S16: 0.00 | T16: 0.00
A17: 12 | S17: 0.00 | T17: 0.00
A18: 13 | S18: 0.00 | T18: 0.00
A19: 14 | S19: 0.00 | T19: 0.00
A20: 15 | S20: 0.00 | T20: 0.00
A21: 16 | S21: 0.00 | T21: 0.00
A22: 17 | S22: 0.00 | T22: 0.00
A23: 18 | S23: 0.00 | T23: 0.00
A24: 19 | S24: 0.00 | T24: 0.00
A25: 20 | S25: 0.00 | T25: 0.00
A26: 21 | S26: 0.00 | T26: 0.00
A27: 22 | S27: 0.00 | T27: 0.00
A28: 23 | S28: 0.00 | T28: 0.00
A29: 24 | S29: 0.00 | T29: 0.00
B30: среднее значение: | C30: =(C6+C7+C8+C9+C10+C11+C12+C13+C14+C15+C16+C17+C18+C19+C20+C21+C22+C23+C24+C25+C26+C27+C28+C29)/COUNTA($B$6:$B$29) -> 0.67 | D30: =(D6+D7+D8+D9+D10+D11+D12+D13+D14+D15+D16+D17+D18+D19+D20+D21+D22+D23+D24+D25+D26+D27+D28+D29)/COUNTA($B$6:$B$29) -> 1.00 | E30: 0.67 | F30: 1.00 | G30: 1.00 | H30: 1.33 | I30: 1.00 | J30: 1.33 | K30: 1.00 | L30: 1.33 | M30: 0.67 | N30: 1.00 | O30: 0.67 | P30: 1.00 | Q30: 1.00 | R30: 0.67 | S30: 0.83 | T30: 1.08
B32: начало года
C33: всего | D33: норма | E33: ниже нормы | F33: низкий
B34: количество детей | C34: =COUNTA(B6:B29) -> 3 | D34: =COUNTIF(S6:S29,">=3,8") -> 0 | E34: =COUNTIFS(S6:S29,"<3,7",S6:S29,">=2,3") -> 1 | F34: =COUNTIFS(S6:S29,"<2,2",S6:S29,">0") -> 0
B35: % | C35: 100 | D35: =D34*C35/C34 -> 0 | E35: =E34*C35/C34 -> 33.3 | F35: =F34*C35/C34 -> 0.0
B38: конец года
C39: всего | D39: норма | E39: ниже нормы | F39: низкий
B40: количество детей | C40: =COUNTA(B6:B29) -> 3 | D40: =COUNTIF(T6:T29,">=3,8") -> 0 | E40: =COUNTIFS(T6:T29,"<3,7",T6:T29,">=2,3") -> 1 | F40: =COUNTIFS(T6:T29,"<2,2",T6:T29,">0") -> 0
B41: % | C41: 100 | D41: =D40*C41/C40 -> 0.0 | E41: =E40*C41/C40 -> 33.3 | F41: =F40*C41/C40 -> 0.0

Sheet ИТОГ СК
A1: Обобщение результатов педагогической диагностики по направлениям ОО «Социально-коммуникативное развитие»
B3: ОГЛАВЛЕНИЕ | C3: Социальные отношения. Формирование основ гражданственности и патриотизма | D3: Трудовое воспитание | E3: Формирование безопасного поведения | F3: Средний балл/уровень (итоговый)
C4: 1 | D4: 2 | E4: 3 | F4: 4
B5: начало | C5: ='СК-1'!U31 -> 0.78 | D5: ='СК-2'!M31 -> 0.87 | E5: ='СК-3'!S30 -> 0.83 | F5: =(C5+D5+E5)/3 -> 0.83
B6: конец | C6: ='СК-1'!V31 -> 1.00 | D6: ='СК-2'!N31 -> 1.20 | E6: ='СК-3'!T30 -> 1.08 | F6: =(C6+D6+E6)/3 -> 1.09
A21: ВЫВОДЫ:
A22: Начало учебного года:
A35: Конец учебного года:

Sheet ХЭ-1
A1: Образовательная область «Художественно-эстетическое развитие»
A2: НАПРАВЛЕНИЕ I. ПРИОБЩЕНИЕ К ИСКУССТВУ | Q2: ОГЛАВЛЕНИЕ
A3: №п/п | B3: ФИ ребенка | C3: Умеет самостоятельно создавать художественные образы в разных видах деятельности | E3: Различает народное и профессиональное искусство | G3: Имеет представление о творческих профессиях: художник, композитор, артист, танцор, певец, пианист, т.д. | I3: Может назвать несколько известных композиторов, художников | K3: Выделяет сходство и различие архитектурных сооружений одинакового назначения | M3: Передает в художественной деятельности образы архитектурных сооружений, сказочных построк | O3: Умеет выражать в речи свои впечатления, высказывать суждения, оценки | Q3: среднее значение
C5: н.г. | D5: к.г. | E5: н.г. | F5: к.г. | G5: н.г. | H5: к.г. | I5: н.г. | J5: к.г. | K5: н.г. | L5: к.г. | M5: н.г. | N5: к.г. | O5: н.г. | P5: к.г. | Q5: н.г. | R5: к.г.
A6: 1 | B6: Иванов | C6: 2 | D6: 3 | E6: 2 | F6: 3 | G6: 3 | H6: 4 | I6: 3 | J6: 4 | K6: 2 | L6: 3 | M6: 4 | N6: 5 | O6: 3 | P6: 4 | Q6: =(C6+E6+G6+I6+K6+M6+O6)/7 -> 2.71 | R6: =(D6+F6+H6+J6+L6+N6+P6)/7 -> 3.71
A7: 2 | B7: Петров | C7: 3 | D7: 4 | E7: 1 | F7: 2 | G7: 2 | H7: 3 | I7: 1 | J7: 2 | K7: 1 | L7: 2 | M7: 3 | N7: 2 | O7: 3 | P7: 4 | Q7: 2.00 | R7: 2.71
A8: 3 | B8: Сидоров | Q8: 0.00 | R8: 0.00
A9: 4 | Q9: 0.00 | R9: 0.00
A10: 5 | Q10: 0.00 | R10: 0.00
A11: 6 | Q11: 0.00 | R11: 0.00
A12: 7 | Q12: 0.00 | R12: 0.00
A13: 8 | Q13: 0.00 | R13: 0.00
A14: 9 | Q14: 0.00 | R14: 0.00
A15: 10 | Q15: 0.00 | R15: 0.00
A16: 11 | Q16: 0.00 | R16: 0.00
A17: 12 | Q17: 0.00 | R17: 0.00
A18: 13 | Q18: 0.00 | R18: 0.00
A19: 14 | Q19: 0.00 | R19: 0.00
A20: 15 | Q20: 0.00 | R20: 0.00
A21: 16 | Q21: 0.00 | R21: 0.00
A22: 17 | Q22: 0.00 | R22: 0.00
A23: 18 | Q23: 0.00 | R23: 0.00
A24: 19 | Q24: 0.00 | R24: 0.00
A25: 20 | Q25: 0.00 | R25: 0.00
A26: 21 | Q26: 0.00 | R26: 0.00
A27: 22 | Q27: 0.00 | R27: 0.00
A28: 23 | Q28: 0.00 | R28: 0.00
A29: 24 | Q29: 0.00 | R29: 0.00
B30: среднее значение: | C30: =(C6+C7+C8+C9+C10+C11+C12+C13+C14+C15+C16+C17+C18+C19+C20+C21+C22+C23+C24+C25+C26+C27+C28+C29)/COUNTA($B$6:$B$29) -> 1.67 | D30: =(D6+D7+D8+D9+D10+D11+D12+D13+D14+D15+D16+D17+D18+D19+D20+D21+D22+D23+D24+D25+D26+D27+D28+D29)/COUNTA($B$6:$B$29) -> 2.33 | E30: 1.00 | F30: 1.67 | G30: 1.67 | H30: 2.33 | I30: 1.33 | J30: 2.00 | K30: 1.00 | L30: 1.67 | M30: 2.33 | N30: 2.33 | O30: 2.00 | P30: 2.67 | Q30: 1.57 | R30: 2.14
B31: начало года
C32: всего | D32: норма | E32: ниже нормы | F32: низкий
B33: количество детей | C33: =COUNTA(B6:B29) -> 3 | D33: =COUNTIF(Q6:Q29,">=3,8") -> 0 | E33: =COUNTIFS(Q6:Q29,"<3,7",Q6:Q29,">=2,3") -> 1 | F33: =COUNTIFS(Q6:Q29,"<2,2",Q6:Q29,">0") -> 1
B34: % | C34: 100 | D34: =D33*C34/C33 -> 0.00 | E34: =E33*C34/C33 -> 33.33 | F34: =F33*C34/C33 -> 33.33
B35: конец года
C36: всего | D36: норма | E36: ниже нормы | F36: низкий
B37: количество детей | C37: =COUNTA(B6:B29) -> 3 | D37: =COUNTIF(R6:R29,">=3,8") -> 0 | E37: =COUNTIFS(R6:R29,"<3,7",R6:R29,">=2,3") -> 1 | F37: =COUNTIFS(R6:R29,"<2,2",R6:R29,">0") -> 0
B38: % | C38: 100 | D38: =D37*C38/C37 -> 0.00 | E38: =E37*C38/C37 -> 33.33 | F38: =F37*C38/C37 -> 0.00

Sheet ХЭ-2
A1: НАПРАВЛЕНИЕ 2. КОНСТРУКТИВНАЯ ДЕЯТЕЛЬНОСТЬ | L1: ОГЛАВЛЕНИЕ
A3: №п/п | B3: ФИ ребенка | C3: Умеет создавать поделки из природного материала по представлению | E3: Собирает разрезные картинки из 5 и более частей с разными видами разрезов | G3: Умеет создавать узор из палочек, мозаики по схеме и по инструкции | I3: Строит из разных конструкторов по схеме в горизонтальной и вертикальной плоскостях постройки, объединенные общей темой | K3: Умеет сгибать лист бумаги по линиям и создавать поделки из бумаги | M3: среднее значение
C5: н.г. | D5: к.г. | E5: н.г. | F5: к.г. | G5: н.г. | H5: к.г. | I5: н.г. | J5: к.г. | K5: н.г. | L5: к.г. | M5: н.г. | N5: к.г.
A6: 1 | B6: Иванов | C6: 2 | D6: 3 | E6: 2 | F6: 3 | G6: 4 | H6: 5 | I6: 2 | J6: 3 | K6: 2 | L6: 3 | M6: =(C6+E6+G6+I6+K6)/5 -> 2.40 | N6: =(D6+F6+H6+J6+L6)/5 -> 3.40
A7: 2 | B7: Петров | C7: 2 | D7: 3 | E7: 4 | F7: 5 | G7: 3 | H7: 4 | I7: 2 | J7: 4 | K7: 3 | L7: 4 | M7: 2.80 | N7: 4.00
A8: 3 | B8: Сидоров | M8: 0.00 | N8: 0.00
A9: 4 | M9: 0.00 | N9: 0.00
A10: 5 | M10: 0.00 | N10: 0.00
A11: 6 | M11: 0.00 | N11: 0.00
A12: 7 | M12: 0.00 | N12: 0.00
A13: 8 | M13: 0.00 | N13: 0.00
A14: 9 | M14: 0.00 | N14: 0.00
A15: 10 | M15: 0.00 | N15: 0.00
A16: 11 | M16: 0.00 | N16: 0.00
A17: 12 | M17: 0.00 | N17: 0.00
A18: 13 | M18: 0.00 | N18: 0.00
A19: 14 | M19: 0.00 | N19: 0.00
A20: 15 | M20: 0.00 | N20: 0.00
A21: 16 | M21: 0.00 | N21: 0.00
A22: 17 | M22: 0.00 | N22: 0.00
A23: 18 | M23: 0.00 | N23: 0.00
A24: 19 | M24: 0.00 | N24: 0.00
A25: 20 | M25: 0.00 | N25: 0.00
A26: 21 | M26: 0.00 | N26: 0.00
A27: 22 | M27: 0.00 | N27: 0.00
A28: 23 | M28: 0.00 | N28: 0.00
A29: 24 | M29: 0.00 | N29: 0.00
B30: среднее значение: | C30: =(C6+C7+C8+C9+C10+C11+C12+C13+C14+C15+C16+C17+C18+C19+C20+C21+C22+C23+C24+C25+C26+C27+C28+C29)/COUNTA($B$6:$B$29) -> 1.33 | D30: =(D6+D7+D8+D9+D10+D11+D12+D13+D14+D15+D16+D17+D18+D19+D20+D21+D22+D23+D24+D25+D26+D27+D28+D29)/COUNTA($B$6:$B$29) -> 2.00 | E30: 2.00 | F30: 2.67 | G30: 2.33 | H30: 3.00 | I30: 1.33 | J30: 2.33 | K30: 1.67 | L30: 2.33 | M30: 1.73 | N30: 2.47
B32: начало года
C33: всего | D33: норма | E33: ниже нормы | F33: низкий
B34: количество детей | C34: =COUNTA(B6:B29) -> 3 | D34: =COUNTIF(M6:M29,">=3,8") -> 0 | E34: =COUNTIFS(M6:M29,"<3,7",M6:M29,">=2,3") -> 2 | F34: =COUNTIFS(M6:M29,"<2,2",M6:M29,">0") -> 0
B35: % | C35: 100 | D35: =D34*C35/C34 -> 0.00 | E35: =E34*C35/C34 -> 66.67 | F35: =F34*C35/C34 -> 0.00
B37: конец года
C38: всего | D38: норма | E38: ниже нормы | F38: низкий
B39: количество детей | C39: =COUNTA(B11:B34) -> 3 | D39: =COUNTIF(N6:N29,">=3,8") -> 1 | E39: =COUNTIFS(N6:N29,"<3,7",N6:N29,">=2,3") -> 1 | F39: =COUNTIFS(N6:N29,"<2,2",N6:N29,">0") -> 0
B40: % | C40: 100 | D40: =D39*C40/C39 -> 33.33 | E40: =E39*C40/C39 -> 33.33 | F40: =F39*C40/C39 -> 0.00

Sheet ХЭ-3
A1: НАПРАВЛЕНИЕ 3. ИЗОБРАЗИТЕЛЬНАЯ ДЕЯТЕЛЬНОСТЬ | T1: ПРОДОЛЖЕНИЕ ТАБЛИЦЫ
A3: №п/п | B3: ФИ ребенка | C3: Рисование | M3: Аппликация | S3: Лепка
C4: Правильно держит карандаш, кисть, соблюдает алгоритм рисования красками | E4: В рисунках есть изображение предметов и явлений (опознаются, в пояснениях не нуждаются), сюжетные композиции | G4: Фигура человека и лицо имеют все прорисованные части, на руках - правильное кол-во пальцев | I4: Может назвать несколько известных картин и художников | K4: Правильно называет 5 и более росписей с опорой на предмет или его изображение или элеинт росписи | M4: Правильно держит кисть для клея, соблюдает алгоритм аппликации | O4: Создает из готовых геометрических форм орнаменты (по образцу, по представлению), образы предметов окружающего мира | Q4: Пользуется ножницами, правильно их держит, режет по прямой и изогнутой линиям | S4: Использует разные приемы работы с пластилином в соответствии с их назначением (5 и более) | U4: Создает из пластилина объемные одиночные предметы и сюжетные композиции по образцу, инструкции и по представлению | W4: Может самостоятельно создать картину из пластилина (с учетом сочетания цветов) и с использованием стеки
C5: н.г. | D5: к.г. | E5: н.г. | F5: к.г. | G5: н.г. | H5: к.г. | I5: н.г. | J5: к.г. | K5: н.г. | L5: к.г. | M5: н.г. | N5: к.г. | O5: н.г. | P5: к.г. | Q5: н.г. | R5: к.г. | S5: н.г. | T5: к.г. | U5: н.г. | V5: к.г. | W5: н.г. | X5: к.г.
A6: 1 | B6: Иванов | C6: 2 | D6: 3 | E6: 2 | F6: 3 | G6: 3 | H6: 4 | I6: 4 | J6: 5 | K6: 3 | L6: 5 | M6: 2 | N6: 3 | O6: 2 | P6: 3 | Q6: 3 | R6: 4 | S6: 3 | T6: 4 | U6: 4 | V6: 5 | W6: 3 | X6: 4
A7: 2 | B7: Петров
A8: 3 | B8: Сидоров
A9: 4
A10: 5
A11: 6
A12: 7
A13: 8
A14: 9
A15: 10
A16: 11
A17: 12
A18: 13
A19: 14
A20: 15
A21: 16
A22: 17
A23: 18
A24: 19
A25: 20
A26: 21
A27: 22
A28: 23
A29: 24
B30: среднее значение: | C30: =(C6+C7+C8+C9+C10+C11+C12+C13+C14+C15+C16+C17+C18+C19+C20+C21+C22+C23+C24+C25+C26+C27+C28+C29)/COUNTA($B$6:$B$29) -> 0.67 | D30: =(D6+D7+D8+D9+D10+D11+D12+D13+D14+D15+D16+D17+D18+D19+D20+D21+D22+D23+D24+D25+D26+D27+D28+D29)/COUNTA($B$6:$B$29) -> 1.00 | E30: 0.67 | F30: 1.00 | G30: 1.00 | H30: 1.33 | I30: 1.33 | J30: 1.67 | K30: 1.00 | L30: 1.67 | M30: 0.67 | N30: 1.00 | O30: 0.67 | P30: 1.00 | Q30: 1.00 | R30: 1.33 | S30: 1.00 | T30: 1.33 | U30: 1.33 | V30: 1.67 | W30: 1.00 | X30: 1.33

Sheet ХЭ-3.1
B1: НАПРАВЛЕНИЕ 3. ИЗОБРАЗИТЕЛЬНАЯ ДЕЯТЕЛЬНОСТЬ | U1: ОГЛАВЛЕНИЕ
B3: №п/п | C3: ФИ ребенка | D3: Прикладное творчество | P3: Народное декоративно-прикладное искусство | V3: среднее значение
D4: Умеет складывать бумагу прямоугольной, квадратной, круглой формы в разных направлениях (пилотка) | F4: Умеет создавать предметы из полосок цветной бумаги (коврик, дорожка, закладка) | H4: Создает объемные игрушки в технике оригами | J4: Умеет вдевать нитку в иголку, завязывать узелок, пришивать пуговицу, вешалку | L4: Делает аппликацию используя кусочки ткани разной фактуры | N4: Создает фигуры людей, животных, птиц из желудей, шишек, косточек и др.природных материалов | P4: Умеет создаватьузоры по мотивам народных росписей (городецкая, гжельская, хохломская, жостовская, мезенская и др.) | R4: Срздает композиции на листах бумаги разной формы | T4: Использует разные способы лепки (налеп, углубленный рельеф), применяя стеку
D5: н.г. | E5: к.г. | F5: н.г. | G5: к.г. | H5: н.г. | I5: к.г. | J5: н.г. | K5: к.г. | L5: н.г. | M5: к.г. | N5: н.г. | O5: к.г. | P5: н.г. | Q5: к.г. | R5: н.г. | S5: к.г. | T5: н.г. | U5: к.г. | V5: н.г. | W5: к.г.
B6: 1 | C6: Иванов | D6: 3 | E6: 4 | F6: 2 | G6: 3 | H6: 2 | I6: 3 | J6: 2 | K6: 3 | L6: 1 | M6: 2 | N6: 2 | O6: 3 | P6: 3 | Q6: 4 | R6: 4 | S6: 5 | T6: 2 | U6: 3 | V6: =('ХЭ-3'!C6+'ХЭ-3'!E6+'ХЭ-3'!G6+'ХЭ-3'!I6+'ХЭ-3'!K6+'ХЭ-3'!M6+'ХЭ-3'!O6+'ХЭ-3'!Q6+'ХЭ-3'!S6+'ХЭ-3'!U6+'ХЭ-3'!W6+'ХЭ-3.1'!D6+'ХЭ-3.1'!F6+'ХЭ-3.1'!H6+'ХЭ-3.1'!J6+'ХЭ-3.1'!L6+'ХЭ-3.1'!N6+'ХЭ-3.1'!P6+'ХЭ-3.1'!R6+'ХЭ-3.1'!T6)/20 -> 2.60 | W6: =('ХЭ-3'!D6+'ХЭ-3'!F6+'ХЭ-3'!H6+'ХЭ-3'!J6+'ХЭ-3'!L6+'ХЭ-3'!N6+'ХЭ-3'!P6+'ХЭ-3'!R6+'ХЭ-3'!T6+'ХЭ-3'!V6+'ХЭ-3'!X6+E6+G6+I6+K6+M6+O6+Q6+S6+U6)/20 -> 3.65
B7: 2 | C7: Петров | V7: =('ХЭ-3'!C7+'ХЭ-3'!E7+'ХЭ-3'!G7+'ХЭ-3'!I7+'ХЭ-3'!K7+'ХЭ-3'!M7+'ХЭ-3'!O7+'ХЭ-3'!Q7+'ХЭ-3'!S7+'ХЭ-3'!U7+'ХЭ-3'!W7+'ХЭ-3.1'!D7+'ХЭ-3.1'!F7+'ХЭ-3.1'!H7+'ХЭ-3.1'!J7+'ХЭ-3.1'!L7+'ХЭ-3.1'!N7+'ХЭ-3.1'!P7+'ХЭ-3.1'!R7+'ХЭ-3.1'!T7)/20 -> 0.00 | W7: =('ХЭ-3'!D7+'ХЭ-3'!F7+'ХЭ-3'!H7+'ХЭ-3'!J7+'ХЭ-3'!L7+'ХЭ-3'!N7+'ХЭ-3'!P7+'ХЭ-3'!R7+'ХЭ-3'!T7+'ХЭ-3'!V7+'ХЭ-3'!X7+E7+G7+I7+K7+M7+O7+Q7+S7+U7)/20 -> 0.00
B8: 3 | C8: Сидоров | V8: =('ХЭ-3'!C8+'ХЭ-3'!E8+'ХЭ-3'!G8+'ХЭ-3'!I8+'ХЭ-3'!K8+'ХЭ-3'!M8+'ХЭ-3'!O8+'ХЭ-3'!Q8+'ХЭ-3'!S8+'ХЭ-3'!U8+'ХЭ-3'!W8+'ХЭ-3.1'!D8+'ХЭ-3.1'!F8+'ХЭ-3.1'!H8+'ХЭ-3.1'!J8+'ХЭ-3.1'!L8+'ХЭ-3.1'!N8+'ХЭ-3.1'!P8+'ХЭ-3.1'!R8+'ХЭ-3.1'!T8)/20 -> 0.00 | W8: =('ХЭ-3'!D8+'ХЭ-3'!F8+'ХЭ-3'!H8+'ХЭ-3'!J8+'ХЭ-3'!L8+'ХЭ-3'!N8+'ХЭ-3'!P8+'ХЭ-3'!R8+'ХЭ-3'!T8+'ХЭ-3'!V8+'ХЭ-3'!X8+E8+G8+I8+K8+M8+O8+Q8+S8+U8)/20 -> 0.00
B9: 4 | V9: =('ХЭ-3'!C9+'ХЭ-3'!E9+'ХЭ-3'!G9+'ХЭ-3'!I9+'ХЭ-3'!K9+'ХЭ-3'!M9+'ХЭ-3'!O9+'ХЭ-3'!Q9+'ХЭ-3'!S9+'ХЭ-3'!U9+'ХЭ-3'!W9+'ХЭ-3.1'!D9+'ХЭ-3.1'!F9+'ХЭ-3.1'!H9+'ХЭ-3.1'!J9+'ХЭ-3.1'!L9+'ХЭ-3.1'!N9+'ХЭ-3.1'!P9+'ХЭ-3.1'!R9+'ХЭ-3.1'!T9)/20 -> 0.00 | W9: =('ХЭ-3'!D9+'ХЭ-3'!F9+'ХЭ-3'!H9+'ХЭ-3'!J9+'ХЭ-3'!L9+'ХЭ-3'!N9+'ХЭ-3'!P9+'ХЭ-3'!R9+'ХЭ-3'!T9+'ХЭ-3'!V9+'ХЭ-3'!X9+E9+G9+I9+K9+M9+O9+Q9+S9+U9)/20 -> 0.00
B10: 5 | V10: =('ХЭ-3'!C10+'ХЭ-3'!E10+'ХЭ-3'!G10+'ХЭ-3'!I10+'ХЭ-3'!K10+'ХЭ-3'!M10+'ХЭ-3'!O10+'ХЭ-3'!Q10+'ХЭ-3'!S10+'ХЭ-3'!U10+'ХЭ-3'!W10+'ХЭ-3.1'!D10+'ХЭ-3.1'!F10+'ХЭ-3.1'!H10+'ХЭ-3.1'!J10+'ХЭ-3.1'!L10+'ХЭ-3.1'!N10+'ХЭ-3.1'!P10+'ХЭ-3.1'!R10+'ХЭ-3.1'!T10)/20 -> 0.00 | W10: =('ХЭ-3'!D10+'ХЭ-3'!F10+'ХЭ-3'!H10+'ХЭ-3'!J10+'ХЭ-3'!L10+'ХЭ-3'!N10+'ХЭ-3'!P10+'ХЭ-3'!R10+'ХЭ-3'!T10+'ХЭ-3'!V10+'ХЭ-3'!X10+E10+G10+I10+K10+M10+O10+Q10+S10+U10)/20 -> 0.00
B11: 6 | V11: =('ХЭ-3'!C11+'ХЭ-3'!E11+'ХЭ-3'!G11+'ХЭ-3'!I11+'ХЭ-3'!K11+'ХЭ-3'!M11+'ХЭ-3'!O11+'ХЭ-3'!Q11+'ХЭ-3'!S11+'ХЭ-3'!U11+'ХЭ-3'!W11+'ХЭ-3.1'!D11+'ХЭ-3.1'!F11+'ХЭ-3.1'!H11+'ХЭ-3.1'!J11+'ХЭ-3.1'!L11+'ХЭ-3.1'!N11+'ХЭ-3.1'!P11+'ХЭ-3.1'!R11+'ХЭ-3.1'!T11)/20 -> 0.00 | W11: =('ХЭ-3'!D11+'ХЭ-3'!F11+'ХЭ-3'!H11+'ХЭ-3'!J11+'ХЭ-3'!L11+'ХЭ-3'!N11+'ХЭ-3'!P11+'ХЭ-3'!R11+'ХЭ-3'!T11+'ХЭ-3'!V11+'ХЭ-3'!X11+E11+G11+I11+K11+M11+O11+Q11+S11+U11)/20 -> 0.00
B12: 7 | V12: =('ХЭ-3'!C12+'ХЭ-3'!E12+'ХЭ-3'!G12+'ХЭ-3'!I12+'ХЭ-3'!K12+'ХЭ-3'!M12+'ХЭ-3'!O12+'ХЭ-3'!Q12+'ХЭ-3'!S12+'ХЭ-3'!U12+'ХЭ-3'!W12+'ХЭ-3.1'!D12+'ХЭ-3.1'!F12+'ХЭ-3.1'!H12+'ХЭ-3.1'!J12+'ХЭ-3.1'!L12+'ХЭ-3.1'!N12+'ХЭ-3.1'!P12+'ХЭ-3.1'!R12+'ХЭ-3.1'!T12)/20 -> 0.00 | W12: =('ХЭ-3'!D12+'ХЭ-3'!F12+'ХЭ-3'!H12+'ХЭ-3'!J12+'ХЭ-3'!L12+'ХЭ-3'!N12+'ХЭ-3'!P12+'ХЭ-3'!R12+'ХЭ-3'!T12+'ХЭ-3'!V12+'ХЭ-3'!X12+E12+G12+I12+K12+M12+O12+Q12+S12+U12)/20 -> 0.00
B13: 8 | V13: =('ХЭ-3'!C13+'ХЭ-3'!E13+'ХЭ-3'!G13+'ХЭ-3'!I13+'ХЭ-3'!K13+'ХЭ-3'!M13+'ХЭ-3'!O13+'ХЭ-3'!Q13+'ХЭ-3'!S13+'ХЭ-3'!U13+'ХЭ-3'!W13+'ХЭ-3.1'!D13+'ХЭ-3.1'!F13+'ХЭ-3.1'!H13+'ХЭ-3.1'!J13+'ХЭ-3.1'!L13+'ХЭ-3.1'!N13+'ХЭ-3.1'!P13+'ХЭ-3.1'!R13+'ХЭ-3.1'!T13)/20 -> 0.00 | W13: =('ХЭ-3'!D13+'ХЭ-3'!F13+'ХЭ-3'!H13+'ХЭ-3'!J13+'ХЭ-3'!L13+'ХЭ-3'!N13+'ХЭ-3'!P13+'ХЭ-3'!R13+'ХЭ-3'!T13+'ХЭ-3'!V13+'ХЭ-3'!X13+E13+G13+I13+K13+M13+O13+Q13+S13+U13)/20 -> 0.00
B14: 9 | V14: =('ХЭ-3'!C14+'ХЭ-3'!E14+'ХЭ-3'!G14+'ХЭ-3'!I14+'ХЭ-3'!K14+'ХЭ-3'!M14+'ХЭ-3'!O14+'ХЭ-3'!Q14+'ХЭ-3'!S14+'ХЭ-3'!U14+'ХЭ-3'!W14+'ХЭ-3.1'!D14+'ХЭ-3.1'!F14+'ХЭ-3.1'!H14+'ХЭ-3.1'!J14+'ХЭ-3.1'!L14+'ХЭ-3.1'!N14+'ХЭ-3.1'!P14+'ХЭ-3.1'!R14+'ХЭ-3.1'!T14)/20 -> 0.00 | W14: =('ХЭ-3'!D14+'ХЭ-3'!F14+'ХЭ-3'!H14+'ХЭ-3'!J14+'ХЭ-3'!L14+'ХЭ-3'!N14+'ХЭ-3'!P14+'ХЭ-3'!R14+'ХЭ-3'!T14+'ХЭ-3'!V14+'ХЭ-3'!X14+E14+G14+I14+K14+M14+O14+Q14+S14+U14)/20 -> 0.00
B15: 10 | V15: =('ХЭ-3'!C15+'ХЭ-3'!E15+'ХЭ-3'!G15+'ХЭ-3'!I15+'ХЭ-3'!K15+'ХЭ-3'!M15+'ХЭ-3'!O15+'ХЭ-3'!Q15+'ХЭ-3'!S15+'ХЭ-3'!U15+'ХЭ-3'!W15+'ХЭ-3.1'!D15+'ХЭ-3.1'!F15+'ХЭ-3.1'!H15+'ХЭ-3.1'!J15+'ХЭ-3.1'!L15+'ХЭ-3.1'!N15+'ХЭ-3.1'!P15+'ХЭ-3.1'!R15+'ХЭ-3.1'!T15)/20 -> 0.00 | W15: =('ХЭ-3'!D15+'ХЭ-3'!F15+'ХЭ-3'!H15+'ХЭ-3'!J15+'ХЭ-3'!L15+'ХЭ-3'!N15+'ХЭ-3'!P15+'ХЭ-3'!R15+'ХЭ-3'!T15+'ХЭ-3'!V15+'ХЭ-3'!X15+E15+G15+I15+K15+M15+O15+Q15+S15+U15)/20 -> 0.00
B16: 11 | V16: =('ХЭ-3'!C16+'ХЭ-3'!E16+'ХЭ-3'!G16+'ХЭ-3'!I16+'ХЭ-3'!K16+'ХЭ-3'!M16+'ХЭ-3'!O16+'ХЭ-3'!Q16+'ХЭ-3'!S16+'ХЭ-3'!U16+'ХЭ-3'!W16+'ХЭ-3.1'!D16+'ХЭ-3.1'!F16+'ХЭ-3.1'!H16+'ХЭ-3.1'!J16+'ХЭ-3.1'!L16+'ХЭ-3.1'!N16+'ХЭ-3.1'!P16+'ХЭ-3.1'!R16+'ХЭ-3.1'!T16)/20 -> 0.00 | W16: =('ХЭ-3'!D16+'ХЭ-3'!F16+'ХЭ-3'!H16+'ХЭ-3'!J16+'ХЭ-3'!L16+'ХЭ-3'!N16+'ХЭ-3'!P16+'ХЭ-3'!R16+'ХЭ-3'!T16+'ХЭ-3'!V16+'ХЭ-3'!X16+E16+G16+I16+K16+M16+O16+Q16+S16+U16)/20 -> 0.00
B17: 12 | V17: =('ХЭ-3'!C17+'ХЭ-3'!E17+'ХЭ-3'!G17+'ХЭ-3'!I17+'ХЭ-3'!K17+'ХЭ-3'!M17+'ХЭ-3'!O17+'ХЭ-3'!Q17+'ХЭ-3'!S17+'ХЭ-3'!U17+'ХЭ-3'!W17+'ХЭ-3.1'!D17+'ХЭ-3.1'!F17+'ХЭ-3.1'!H17+'ХЭ-3.1'!J17+'ХЭ-3.1'!L17+'ХЭ-3.1'!N17+'ХЭ-3.1'!P17+'ХЭ-3.1'!R17+'ХЭ-3.1'!T17)/20 -> 0.00 | W17: =('ХЭ-3'!D17+'ХЭ-3'!F17+'ХЭ-3'!H17+'ХЭ-3'!J17+'ХЭ-3'!L17+'ХЭ-3'!N17+'ХЭ-3'!P17+'ХЭ-3'!R17+'ХЭ-3'!T17+'ХЭ-3'!V17+'ХЭ-3'!X17+E17+G17+I17+K17+M17+O17+Q17+S17+U17)/20 -> 0.00
B18: 13 | V18: =('ХЭ-3'!C18+'ХЭ-3'!E18+'ХЭ-3'!G18+'ХЭ-3'!I18+'ХЭ-3'!K18+'ХЭ-3'!M18+'ХЭ-3'!O18+'ХЭ-3'!Q18+'ХЭ-3'!S18+'ХЭ-3'!U18+'ХЭ-3'!W18+'ХЭ-3.1'!D18+'ХЭ-3.1'!F18+'ХЭ-3.1'!H18+'ХЭ-3.1'!J18+'ХЭ-3.1'!L18+'ХЭ-3.1'!N18+'ХЭ-3.1'!P18+'ХЭ-3.1'!R18+'ХЭ-3.1'!T18)/20 -> 0.00 | W18: =('ХЭ-3'!D18+'ХЭ-3'!F18+'ХЭ-3'!H18+'ХЭ-3'!J18+'ХЭ-3'!L18+'ХЭ-3'!N18+'ХЭ-3'!P18+'ХЭ-3'!R18+'ХЭ-3'!T18+'ХЭ-3'!V18+'ХЭ-3'!X18+E18+G18+I18+K18+M18+O18+Q18+S18+U18)/20 -> 0.00
B19: 14 | V19: =('ХЭ-3'!C19+'ХЭ-3'!E19+'ХЭ-3'!G19+'ХЭ-3'!I19+'ХЭ-3'!K19+'ХЭ-3'!M19+'ХЭ-3'!O19+'ХЭ-3'!Q19+'ХЭ-3'!S19+'ХЭ-3'!U19+'ХЭ-3'!W19+'ХЭ-3.1'!D19+'ХЭ-3.1'!F19+'ХЭ-3.1'!H19+'ХЭ-3.1'!J19+'ХЭ-3.1'!L19+'ХЭ-3.1'!N19+'ХЭ-3.1'!P19+'ХЭ-3.1'!R19+'ХЭ-3.1'!T19)/20 -> 0.00 | W19: =('ХЭ-3'!D19+'ХЭ-3'!F19+'ХЭ-3'!H19+'ХЭ-3'!J19+'ХЭ-3'!L19+'ХЭ-3'!N19+'ХЭ-3'!P19+'ХЭ-3'!R19+'ХЭ-3'!T19+'ХЭ-3'!V19+'ХЭ-3'!X19+E19+G19+I19+K19+M19+O19+Q19+S19+U19)/20 -> 0.00
B20: 15 | V20: =('ХЭ-3'!C20+'ХЭ-3'!E20+'ХЭ-3'!G20+'ХЭ-3'!I20+'ХЭ-3'!K20+'ХЭ-3'!M20+'ХЭ-3'!O20+'ХЭ-3'!Q20+'ХЭ-3'!S20+'ХЭ-3'!U20+'ХЭ-3'!W20+'ХЭ-3.1'!D20+'ХЭ-3.1'!F20+'ХЭ-3.1'!H20+'ХЭ-3.1'!J20+'ХЭ-3.1'!L20+'ХЭ-3.1'!N20+'ХЭ-3.1'!P20+'ХЭ-3.1'!R20+'ХЭ-3.1'!T20)/20 -> 0.00 | W20: =('ХЭ-3'!D20+'ХЭ-3'!F20+'ХЭ-3'!H20+'ХЭ-3'!J20+'ХЭ-3'!L20+'ХЭ-3'!N20+'ХЭ-3'!P20+'ХЭ-3'!R20+'ХЭ-3'!T20+'ХЭ-3'!V20+'ХЭ-3'!X20+E20+G20+I20+K20+M20+O20+Q20+S20+U20)/20 -> 0.00
B21: 16 | V21: =('ХЭ-3'!C21+'ХЭ-3'!E21+'ХЭ-3'!G21+'ХЭ-3'!I21+'ХЭ-3'!K21+'ХЭ-3'!M21+'ХЭ-3'!O21+'ХЭ-3'!Q21+'ХЭ-3'!S21+'ХЭ-3'!U21+'ХЭ-3'!W21+'ХЭ-3.1'!D21+'ХЭ-3.1'!F21+'ХЭ-3.1'!H21+'ХЭ-3.1'!J21+'ХЭ-3.1'!L21+'ХЭ-3.1'!N21+'ХЭ-3.1'!P21+'ХЭ-3.1'!R21+'ХЭ-3.1'!T21)/20 -> 0.00 | W21: =('ХЭ-3'!D21+'ХЭ-3'!F21+'ХЭ-3'!H21+'ХЭ-3'!J21+'ХЭ-3'!L21+'ХЭ-3'!N21+'ХЭ-3'!P21+'ХЭ-3'!R21+'ХЭ-3'!T21+'ХЭ-3'!V21+'ХЭ-3'!X21+E21+G21+I21+K21+M21+O21+Q21+S21+U21)/20 -> 0.00
B22: 17 | V22: =('ХЭ-3'!C22+'ХЭ-3'!E22+'ХЭ-3'!G22+'ХЭ-3'!I22+'ХЭ-3'!K22+'ХЭ-3'!M22+'ХЭ-3'!O22+'ХЭ-3'!Q22+'ХЭ-3'!S22+'ХЭ-3'!U22+'ХЭ-3'!W22+'ХЭ-3.1'!D22+'ХЭ-3.1'!F22+'ХЭ-3.1'!H22+'ХЭ-3.1'!J22+'ХЭ-3.1'!L22+'ХЭ-3.1'!N22+'ХЭ-3.1'!P22+'ХЭ-3.1'!R22+'ХЭ-3.1'!T22)/20 -> 0.00 | W22: =('ХЭ-3'!D22+'ХЭ-3'!F22+'ХЭ-3'!H22+'ХЭ-3'!J22+'ХЭ-3'!L22+'ХЭ-3'!N22+'ХЭ-3'!P22+'ХЭ-3'!R22+'ХЭ-3'!T22+'ХЭ-3'!V22+'ХЭ-3'!X22+E22+G22+I22+K22+M22+O22+Q22+S22+U22)/20 -> 0.00
B23: 18 | V23: =('ХЭ-3'!C23+'ХЭ-3'!E23+'ХЭ-3'!G23+'ХЭ-3'!I23+'ХЭ-3'!K23+'ХЭ-3'!M23+'ХЭ-3'!O23+'ХЭ-3'!Q23+'ХЭ-3'!S23+'ХЭ-3'!U23+'ХЭ-3'!W23+'ХЭ-3.1'!D23+'ХЭ-3.1'!F23+'ХЭ-3.1'!H23+'ХЭ-3.1'!J23+'ХЭ-3.1'!L23+'ХЭ-3.1'!N23+'ХЭ-3.1'!P23+'ХЭ-3.1'!R23+'ХЭ-3.1'!T23)/20 -> 0.00 | W23: =('ХЭ-3'!D23+'ХЭ-3'!F23+'ХЭ-3'!H23+'ХЭ-3'!J23+'ХЭ-3'!L23+'ХЭ-3'!N23+'ХЭ-3'!P23+'ХЭ-3'!R23+'ХЭ-3'!T23+'ХЭ-3'!V23+'ХЭ-3'!X23+E23+G23+I23+K23+M23+O23+Q23+S23+U23)/20 -> 0.00
B24: 19 | V24: =('ХЭ-3'!C24+'ХЭ-3'!E24+'ХЭ-3'!G24+'ХЭ-3'!I24+'ХЭ-3'!K24+'ХЭ-3'!M24+'ХЭ-3'!O24+'ХЭ-3'!Q24+'ХЭ-3'!S24+'ХЭ-3'!U24+'ХЭ-3'!W24+'ХЭ-3.1'!D24+'ХЭ-3.1'!F24+'ХЭ-3.1'!H24+'ХЭ-3.1'!J24+'ХЭ-3.1'!L24+'ХЭ-3.1'!N24+'ХЭ-3.1'!P24+'ХЭ-3.1'!R24+'ХЭ-3.1'!T24)/20 -> 0.00 | W24: =('ХЭ-3'!D24+'ХЭ-3'!F24+'ХЭ-3'!H24+'ХЭ-3'!J24+'ХЭ-3'!L24+'ХЭ-3'!N24+'ХЭ-3'!P24+'ХЭ-3'!R24+'ХЭ-3'!T24+'ХЭ-3'!V24+'ХЭ-3'!X24+E24+G24+I24+K24+M24+O24+Q24+S24+U24)/20 -> 0.00
B25: 20 | V25: =('ХЭ-3'!C25+'ХЭ-3'!E25+'ХЭ-3'!G25+'ХЭ-3'!I25+'ХЭ-3'!K25+'ХЭ-3'!M25+'ХЭ-3'!O25+'ХЭ-3'!Q25+'ХЭ-3'!S25+'ХЭ-3'!U25+'ХЭ-3'!W25+'ХЭ-3.1'!D25+'ХЭ-3.1'!F25+'ХЭ-3.1'!H25+'ХЭ-3.1'!J25+'ХЭ-3.1'!L25+'ХЭ-3.1'!N25+'ХЭ-3.1'!P25+'ХЭ-3.1'!R25+'ХЭ-3.1'!T25)/20 -> 0.00 | W25: =('ХЭ-3'!D25+'ХЭ-3'!F25+'ХЭ-3'!H25+'ХЭ-3'!J25+'ХЭ-3'!L25+'ХЭ-3'!N25+'ХЭ-3'!P25+'ХЭ-3'!R25+'ХЭ-3'!T25+'ХЭ-3'!V25+'ХЭ-3'!X25+E25+G25+I25+K25+M25+O25+Q25+S25+U25)/20 -> 0.00
B26: 21 | V26: =('ХЭ-3'!C26+'ХЭ-3'!E26+'ХЭ-3'!G26+'ХЭ-3'!I26+'ХЭ-3'!K26+'ХЭ-3'!M26+'ХЭ-3'!O26+'ХЭ-3'!Q26+'ХЭ-3'!S26+'ХЭ-3'!U26+'ХЭ-3'!W26+'ХЭ-3.1'!D26+'ХЭ-3.1'!F26+'ХЭ-3.1'!H26+'ХЭ-3.1'!J26+'ХЭ-3.1'!L26+'ХЭ-3.1'!N26+'ХЭ-3.1'!P26+'ХЭ-3.1'!R26+'ХЭ-3.1'!T26)/20 -> 0.00 | W26: =('ХЭ-3'!D26+'ХЭ-3'!F26+'ХЭ-3'!H26+'ХЭ-3'!J26+'ХЭ-3'!L26+'ХЭ-3'!N26+'ХЭ-3'!P26+'ХЭ-3'!R26+'ХЭ-3'!T26+'ХЭ-3'!V26+'ХЭ-3'!X26+E26+G26+I26+K26+M26+O26+Q26+S26+U26)/20 -> 0.00
B27: 22 | V27: =('ХЭ-3'!C27+'ХЭ-3'!E27+'ХЭ-3'!G27+'ХЭ-3'!I27+'ХЭ-3'!K27+'ХЭ-3'!M27+'ХЭ-3'!O27+'ХЭ-3'!Q27+'ХЭ-3'!S27+'ХЭ-3'!U27+'ХЭ-3'!W27+'ХЭ-3.1'!D27+'ХЭ-3.1'!F27+'ХЭ-3.1'!H27+'ХЭ-3.1'!J27+'ХЭ-3.1'!L27+'ХЭ-3.1'!N27+'ХЭ-3.1'!P27+'ХЭ-3.1'!R27+'ХЭ-3.1'!T27)/20 -> 0.00 | W27: =('ХЭ-3'!D27+'ХЭ-3'!F27+'ХЭ-3'!H27+'ХЭ-3'!J27+'ХЭ-3'!L27+'ХЭ-3'!N27+'ХЭ-3'!P27+'ХЭ-3'!R27+'ХЭ-3'!T27+'ХЭ-3'!V27+'ХЭ-3'!X27+E27+G27+I27+K27+M27+O27+Q27+S27+U27)/20 -> 0.00
B28: 23 | V28: =('ХЭ-3'!C28+'ХЭ-3'!E28+'ХЭ-3'!G28+'ХЭ-3'!I28+'ХЭ-3'!K28+'ХЭ-3'!M28+'ХЭ-3'!O28+'ХЭ-3'!Q28+'ХЭ-3'!S28+'ХЭ-3'!U28+'ХЭ-3'!W28+'ХЭ-3.1'!D28+'ХЭ-3.1'!F28+'ХЭ-3.1'!H28+'ХЭ-3.1'!J28+'ХЭ-3.1'!L28+'ХЭ-3.1'!N28+'ХЭ-3.1'!P28+'ХЭ-3.1'!R28+'ХЭ-3.1'!T28)/20 -> 0.00 | W28: =('ХЭ-3'!D28+'ХЭ-3'!F28+'ХЭ-3'!H28+'ХЭ-3'!J28+'ХЭ-3'!L28+'ХЭ-3'!N28+'ХЭ-3'!P28+'ХЭ-3'!R28+'ХЭ-3'!T28+'ХЭ-3'!V28+'ХЭ-3'!X28+E28+G28+I28+K28+M28+O28+Q28+S28+U28)/20 -> 0.00
B29: 24 | V29: =('ХЭ-3'!C29+'ХЭ-3'!E29+'ХЭ-3'!G29+'ХЭ-3'!I29+'ХЭ-3'!K29+'ХЭ-3'!M29+'ХЭ-3'!O29+'ХЭ-3'!Q29+'ХЭ-3'!S29+'ХЭ-3'!U29+'ХЭ-3'!W29+'ХЭ-3.1'!D29+'ХЭ-3.1'!F29+'ХЭ-3.1'!H29+'ХЭ-3.1'!J29+'ХЭ-3.1'!L29+'ХЭ-3.1'!N29+'ХЭ-3.1'!P29+'ХЭ-3.1'!R29+'ХЭ-3.1'!T29)/20 -> 0.00 | W29: =('ХЭ-3'!D29+'ХЭ-3'!F29+'ХЭ-3'!H29+'ХЭ-3'!J29+'ХЭ-3'!L29+'ХЭ-3'!N29+'ХЭ-3'!P29+'ХЭ-3'!R29+'ХЭ-3'!T29+'ХЭ-3'!V29+'ХЭ-3'!X29+E29+G29+I29+K29+M29+O29+Q29+S29+U29)/20 -> 0.00
C30: среднее значение: | D30: =(D6+D7+D8+D9+D10+D11+D12+D13+D14+D15+D16+D17+D18+D19+D20+D21+D22+D23+D24+D25+D26+D27+D28+D29)/COUNTA($C$6:$C$29) -> 1.00 | E30: 1.33 | F30: 0.67 | G30: 1.00 | H30: 0.67 | I30: 1.00 | J30: 0.67 | K30: 1.00 | L30: 0.33 | M30: 0.67 | N30: 0.67 | O30: 1.00 | P30: 1.00 | Q30: 1.33 | R30: 1.33 | S30: 1.67 | T30: 0.67 | U30: 1.00 | V30: =('ХЭ-3'!C30+'ХЭ-3'!E30+'ХЭ-3'!G30+'ХЭ-3'!I30+'ХЭ-3'!K30+'ХЭ-3'!M30+'ХЭ-3'!O30+'ХЭ-3'!Q30+'ХЭ-3'!S30+'ХЭ-3'!U30+'ХЭ-3'!W30+'ХЭ-3.1'!D30+'ХЭ-3.1'!F30+'ХЭ-3.1'!H30+'ХЭ-3.1'!J30+'ХЭ-3.1'!L30+'ХЭ-3.1'!N30+'ХЭ-3.1'!P30+'ХЭ-3.1'!R30+'ХЭ-3.1'!T30)/20 -> 0.87 | W30: =('ХЭ-3'!D30+'ХЭ-3'!F30+'ХЭ-3'!H30+'ХЭ-3'!J30+'ХЭ-3'!L30+'ХЭ-3'!N30+'ХЭ-3'!P30+'ХЭ-3'!R30+'ХЭ-3'!T30+'ХЭ-3'!V30+'ХЭ-3'!X30+E30+G30+I30+K30+M30+O30+Q30+S30+U30)/20 -> 1.22
C32: начало года
D33: всего | E33: норма | F33: ниже нормы | G33: низкий
C34: количество детей | D34: =COUNTA(C6:C29) -> 3 | E34: =COUNTIF(V6:V29,">=3,8") -> 0 | F34: =COUNTIFS(V6:V29,"<3,7",V6:V29,">=2,3") -> 1 | G34: =COUNTIFS(V6:V29,"<2,2",V6:V29,">0") -> 0
C35: % | D35: 100 | E35: =E34*D35/D34 -> 0.00 | F35: =F34*D35/D34 -> 33.33 | G35: =G34*D35/D34 -> 0.00
C37: конец года
D38: всего | E38: норма | F38: ниже нормы | G38: низкий
C39: количество детей | D39: =COUNTA(C11:C31) -> 1 | E39: =COUNTIF(W6:W29,">=3,8") -> 0 | F39: =COUNTIFS(W6:W29,"<3,7",W6:W29,">=2,3") -> 1 | G39: =COUNTIFS(W6:W29,"<2,2",W6:W29,">0") -> 0
C40: % | D40: 100 | E40: =E39*D40/D39 -> 0.00 | F40: =F39*D40/D39 -> 100.00 | G40: =G39*D40/D39 -> 0.00

Sheet ХЭ-4
A1: НАПРАВЛЕНИЕ 4. МУЗЫКАЛЬНАЯ ДЕЯТЕЛЬНОСТЬ | AE1: ОГЛАВЛЕНИЕ
A3: №п/п | B3: ФИ ребенка | C3: Слушание | K3: Пение | Q3: Песенное творчество | U3: Музыкально-ритмические движения | Y3: Музыкально-игровое и танцевальное творчество | AC3: Игра на ДМИ | AG3: Может определить несколько известных музыкальных произведений, назвать композиторов | AI3: среднее значение
C4: Правильно называет жанр музыкальною произведения (песня, танец, марш ) | E4: Знаком с вокальной, инструментальной, оркестровой музыкой | G4: Слушает музыкальное произведение до конца, определяет части музыкального произведения | I4: Знает и узнает мелодию государственного гимна Российской Федерации и родного края | K4: Выразительно исполняет песни в пределах от "до" первой октавы до "ре" второй октавы | M4: Умеет братьдыхание и удерживает его до конца фразы | O4: Поёт самостоятельно, индивидуально и коллективно, с музыкальным сопровождением и без | Q4: Самостоятельно придумывает мелодии, используя для образца русские народные песни | S4: Импровизирует мелодии на заданную тему по образцу и без него, используя знакомые песни, танцы, пьесы | U4: Умеет воспроизводить музыкально-ритмические упражнения под музыку и без нее, согласовывать движения рук и ног | W4: Исполняет национальные пляски (русские, татарские, башкирские и т.д.) | Y4: Умеет импровизировать под музыку соответствующего характера (лыжник, наездник, рыбак и т.д) | AA4: Придумывает движения, отражающие содержание песни | AC4: Исполняет мелодии на металлофоне, свиристели, ударных и электронных музыкальных инструментах, трещотках, погремушках, треугольник | AE4: Исполняет музыкальные произведения в оркестре и в ансамбле
C5: н.г. | D5: к.г. | E5: н.г. | F5: к.г. | G5: н.г. | H5: к.г. | I5: н.г. | J5: к.г. | K5: н.г. | L5: к.г. | M5: н.г. | N5: к.г. | O5: н.г. | P5: к.г. | Q5: н.г. | R5: к.г. | S5: н.г. | T5: к.г. | U5: н.г. | V5: к.г. | W5: н.г. | X5: к.г. | Y5: н.г. | Z5: к.г. | AA5: н.г. | AB5: к.г. | AC5: н.г. | AD5: к.г. | AE5: н.г. | AF5: к.г. | AG5: н.г. | AH5: к.г. | AI5: н.г. | AJ5: к.г.
A6: 1 | B6: Иванов | C6: 2 | D6: 3 | E6: 2 | F6: 3 | G6: 3 | H6: 4 | I6: 4 | J6: 5 | K6: 3 | L6: 5 | M6: 2 | N6: 4 | O6: 3 | P6: 4 | Q6: 3 | R6: 5 | S6: 3 | T6: 4 | U6: 2 | V6: 3 | W6: 2 | X6: 3 | Y6: 3 | Z6: 4 | AA6: 3 | AB6: 4 | AC6: 2 | AD6: 3 | AE6: 2 | AF6: 3 | AG6: 2 | AH6: 3 | AI6: =(C6+E6+G6+I6+AG6+K6+M6+O6+Q6+S6+U6+W6+Y6+AA6+AC6+AE6)/16 -> 2.56 | AJ6: =(D6+F6+H6+AF6+AH6+J6+L6+N6+P6+R6+T6+V6+X6+Z6+AB6+AD6)/16 -> 3.75
A7: 2 | B7: Петров | C7: 2 | D7: 3 | E7: 4 | F7: 5 | G7: 3 | H7: 4 | I7: 3 | J7: 4 | K7: 2 | L7: 4 | M7: 3 | N7: 4 | O7: 3 | P7: 4 | Q7: 3 | R7: 4 | S7: 2 | T7: 3 | U7: 2 | V7: 3 | W7: 2 | X7: 3 | Y7: 2 | Z7: 3 | AA7: 1 | AB7: 2 | AC7: 2 | AD7: 3 | AE7: 2 | AF7: 3 | AG7: 1 | AH7: 2 | AI7: =(C7+E7+G7+I7+AG7+K7+M7+O7+Q7+S7+U7+W7+Y7+AA7+AC7+AE7)/16 -> 2.31 | AJ7: =(D7+F7+H7+AF7+AH7+J7+L7+N7+P7+R7+T7+V7+X7+Z7+AB7+AD7)/16 -> 3.38
A8: 3 | B8: Сидоров | AI8: 0.00 | AJ8: 0.00
A9: 4 | AI9: 0.00 | AJ9: 0.00
A10: 5 | AI10: 0.00 | AJ10: 0.00
A11: 6 | AI11: 0.00 | AJ11: 0.00
A12: 7 | AI12: 0.00 | AJ12: 0.00
A13: 8 | AI13: 0.00 | AJ13: 0.00
A14: 9 | AI14: 0.00 | AJ14: 0.00
A15: 10 | AI15: 0.00 | AJ15: 0.00
A16: 11 | AI16: 0.00 | AJ16: 0.00
A17: 12 | AI17: 0.00 | AJ17: 0.00
A18: 13 | AI18: 0.00 | AJ18: 0.00
A19: 14 | AI19: 0.00 | AJ19: 0.00
A20: 15 | AI20: 0.00 | AJ20: 0.00
A21: 16 | AI21: 0.00 | AJ21: 0.00
A22: 17 | AI22: 0.00 | AJ22: 0.00
A23: 18 | AI23: 0.00 | AJ23: 0.00
A24: 19 | AI24: 0.00 | AJ24: 0.00
A25: 20 | AI25: 0.00 | AJ25: 0.00
A26: 21 | AI26: 0.00 | AJ26: 0.00
A27: 22 | AI27: 0.00 | AJ27: 0.00
A28: 23 | AI28: 0.00 | AJ28: 0.00
A29: 24 | AI29: 0.00 | AJ29: 0.00
B30: среднее значение: | C30: =(C6+C7+C8+C9+C10+C11+C12+C13+C14+C15+C16+C17+C18+C19+C20+C21+C22+C23+C24+C25+C26+C27+C28+C29)/COUNTA($B$6:$B$29) -> 1.33 | D30: =(D6+D7+D8+D9+D10+D11+D12+D13+D14+D15+D16+D17+D18+D19+D20+D21+D22+D23+D24+D25+D26+D27+D28+D29)/COUNTA($B$6:$B$29) -> 2.00 | E30: 2.00 | F30: 2.67 | G30: 2.00 | H30: 2.67 | I30: 2.33 | J30: 3.00 | K30: 1.67 | L30: 3.00 | M30: 1.67 | N30: 2.67 | O30: 2.00 | P30: 2.67 | Q30: 2.00 | R30: 3.00 | S30: 1.67 | T30: 2.33 | U30: 1.33 | V30: 2.00 | W30: 1.33 | X30: 2.00 | Y30: 1.67 | Z30: 2.33 | AA30: 1.33 | AB30: 2.00 | AC30: 1.33 | AD30: 2.00 | AE30: 1.33 | AF30: 2.00 | AG30: 1.00 | AH30: 1.67 | AI30: 1.63 | AJ30: 2.38
B32: начало года
C33: всего | D33: норма | E33: ниже нормы | F33: низкий
B34: количество детей | C34: =COUNTA(B6:B29) -> 3 | D34: =COUNTIF(AI6:AI29,">=3,8") -> 0 | E34: =COUNTIFS(AI6:AI29,"<3,7",AI6:AI29,">=2,3") -> 2 | F34: =COUNTIFS(AI6:AI29,"<2,2",AI6:AI29,">0") -> 0
B35: % | C35: 100 | D35: =D34*C35/C34 -> 0.00 | E35: =E34*C35/C34 -> 66.67 | F35: =F34*C35/C34 -> 0.00
B38: конец года
C39: всего | D39: норма | E39: ниже нормы | F39: низкий
B40: количество детей | C40: =COUNTA(B5:B28) -> 3 | D40: =COUNTIF(AJ6:AJ29,">=3,8") -> 0 | E40: =COUNTIFS(AJ6:AJ29,"<3,7",AJ6:AJ29,">=2,3") -> 1 | F40: =COUNTIFS(AJ6:AJ29,"<2,2",AJ6:AJ29,">0") -> 0
B41: % | C41: 100 | D41: =D40*C41/C40 -> 0.00 | E41: =E40*C41/C40 -> 33.33 | F41: =F40*C41/C40 -> 0.00

Sheet ХЭ-5
A1: НАПРАВЛЕНИЕ 5. ТЕАТРАЛИЗОВАННАЯ И КУЛЬТУРНО-ДОСУГОВАЯ ДЕЯТЕЛЬНОСТЬ | M1: ОГЛАВЛЕНИЕ
A3: №п/п | B3: ФИ ребенка | C3: Театрализованная деятельность | I3: среднее значение | K3: Культурно-досуговая деятельность | O3: среднее значение
C4: Использует средства выразительности (поза, жесты, мимика, интонация, движения) | E4: Использует разные виды театра | G4: Умеет действовать и говорить от имени разных персонажей, сочетая движение театральных игрушек с речью | K4: Участвует в подготовке развлечений | M4: С интересом участвует в праздничных мероприятиях
C5: н.г. | D5: к.г. | E5: н.г. | F5: к.г. | G5: н.г. | H5: к.г. | I5: н.г. | J5: к.г. | K5: н.г. | L5: к.г. | M5: н.г. | N5: к.г. | O5: н.г. | P5: к.г.
A6: 1 | B6: Иванов | C6: 2 | D6: 3 | E6: 2 | F6: 3 | G6: 3 | H6: 4 | I6: =(C6+E6+G6)/3 -> 2.33 | J6: =(D6+F6+H6)/3 -> 3.33 | K6: 3 | L6: 4 | M6: 3 | N6: 4 | O6: =(K6+M6)/2 -> 3.00 | P6: =(L6+N6)/2 -> 4.00
A7: 2 | B7: Петров | I7: =(C7+E7+G7)/3 -> 0.00 | J7: 0.00 | O7: =(K7+M7)/2 -> 0.00 | P7: 0.00
A8: 3 | B8: Сидоров | I8: 0.00 | J8: 0.00 | O8: 0.00 | P8: 0.00
A9: 4 | I9: 0.00 | J9: 0.00 | O9: 0.00 | P9: 0.00
A10: 5 | I10: 0.00 | J10: 0.00 | O10: 0.00 | P10: 0.00
A11: 6 | I11: 0.00 | J11: 0.00 | O11: 0.00 | P11: 0.00
A12: 7 | I12: 0.00 | J12: 0.00 | O12: 0.00 | P12: 0.00
A13: 8 | I13: 0.00 | J13: 0.00 | O13: 0.00 | P13: 0.00
A14: 9 | I14: 0.00 | J14: 0.00 | O14: 0.00 | P14: 0.00
A15: 10 | I15: 0.00 | J15: 0.00 | O15: 0.00 | P15: 0.00
A16: 11 | I16: 0.00 | J16: 0.00 | O16: 0.00 | P16: 0.00
A17: 12 | I17: 0.00 | J17: 0.00 | O17: 0.00 | P17: 0.00
A18: 13 | I18: 0.00 | J18: 0.00 | O18: 0.00 | P18: 0.00
A19: 14 | I19: 0.00 | J19: 0.00 | O19: 0.00 | P19: 0.00
A20: 15 | I20: 0.00 | J20: 0.00 | O20: 0.00 | P20: 0.00
A21: 16 | I21: 0.00 | J21: 0.00 | O21: 0.00 | P21: 0.00
A22: 17 | I22: 0.00 | J22: 0.00 | O22: 0.00 | P22: 0.00
A23: 18 | I23: 0.00 | J23: 0.00 | O23: 0.00 | P23: 0.00
A24: 19 | I24: 0.00 | J24: 0.00 | O24: 0.00 | P24: 0.00
A25: 20 | I25: 0.00 | J25: 0.00 | O25: 0.00 | P25: 0.00
A26: 21 | I26: 0.00 | J26: 0.00 | O26: 0.00 | P26: 0.00
A27: 22 | I27: 0.00 | J27: 0.00 | O27: 0.00 | P27: 0.00
A28: 23 | I28: 0.00 | J28: 0.00 | O28: 0.00 | P28: 0.00
A29: 24 | I29: 0.00 | J29: 0.00 | O29: 0.00 | P29: 0.00
B30: среднее значение: | C30: =(C6+C7+C8+C9+C10+C11+C12+C13+C14+C15+C16+C17+C18+C19+C20+C21+C22+C23+C24+C25+C26+C27+C28+C29)/COUNTA($B$6:$B$29) -> 0.67 | D30: =(D6+D7+D8+D9+D10+D11+D12+D13+D14+D15+D16+D17+D18+D19+D20+D21+D22+D23+D24+D25+D26+D27+D28+D29)/COUNTA($B$6:$B$29) -> 1.00 | E30: 0.67 | F30: 1.00 | G30: 1.00 | H30: 1.33 | I30: 0.78 | J30: 1.11 | K30: =(K6+K7+K8+K9+K10+K11+K12+K13+K14+K15+K16+K17+K18+K19+K20+K21+K22+K23+K24+K25+K26+K27+K28+K29)/COUNTA($B$6:$B$29) -> 1.00 | L30: =(L6+L7+L8+L9+L10+L11+L12+L13+L14+L15+L16+L17+L18+L19+L20+L21+L22+L23+L24+L25+L26+L27+L28+L29)/COUNTA($B$6:$B$29) -> 1.33 | M30: 1.00 | N30: 1.33 | O30: 1.00 | P30: 1.33
B32: ТЕАТРАЛИЗОВАННАЯ ДЕЯТЕЛЬНОСТЬ | H32: КУЛЬТУРНО-ДОСУГОВАЯ ДЕЯТЕЛЬНОСТЬ
B33: начало года | H33: начало года
C34: всего | D34: норма | E34: ниже нормы | F34: низкий | L34: всего | M34: норма | N34: ниже нормы | O34: низкий
B35: количество детей | C35: =COUNTA(B6:B29) -> 3 | D35: =COUNTIF(I6:I29,">=3,8") -> 0 | E35: =COUNTIFS(I6:I29,"<3,7",I6:I29,">=2,3") -> 1 | F35: =COUNTIFS(I6:I29,"<2,2",I6:I29,">0") -> 0 | H35: количество детей | L35: =COUNTA(B6:B29) -> 3 | M35: =COUNTIF(O6:O29,">=3,8") -> 0 | N35: =COUNTIFS(O6:O29,"<3,7",O6:O29,">=2,3") -> 1 | O35: =COUNTIFS(O6:O29,"<2,2",O6:O29,">0") -> 0
B36: % | C36: 100 | D36: =D35*C36/C35 -> 0.00 | E36: =E35*C36/C35 -> 33.33 | F36: =F35*C36/C35 -> 0.00 | H36: % | L36: 100 | M36: =M35*L36/L35 -> 0.00 | N36: =N35*L36/L35 -> 33.33 | O36: =O35*L36/L35 -> 0.00
B39: конец года | H39: конец года
C40: всего | D40: норма | E40: ниже нормы | F40: низкий | L40: всего | M40: норма | N40: ниже нормы | O40: низкий
B41: количество детей | C41: =COUNTA(B5:B28) -> 3 | D41: =COUNTIF(J6:J29,">=3,8") -> 0 | E41: =COUNTIFS(J6:J29,"<3,7",J6:J29,">=2,3") -> 1 | F41: =COUNTIFS(J6:J29,"<2,2",J6:J29,">0") -> 0 | H41: количество детей | L41: =COUNTA(B6:B29) -> 3 | M41: =COUNTIF(P6:P29,">=3,8") -> 1 | N41: =COUNTIFS(P6:P29,"<3,7",P6:P29,">=2,3") -> 0 | O41: =COUNTIFS(O6:O29,"<2,2",O6:O29,">0") -> 0
B42: % | C42: 100 | D42: =D41*C42/C41 -> 0.00 | E42: =E41*C42/C41 -> 33.33 | F42: =F41*C42/C41 -> 0.00 | H42: % | L42: 100 | M42: =M41*L42/L41 -> 33.33 | N42: =N41*L42/L41 -> 0.00 | O42: =O41*L42/L41 -> 0.00

Sheet ИТОГ ХЭ
A1: Обобщение результатов педагогической диагностики по направлениям
A2: ОО «Художественно-эстетическое развитие»
H3: ОГЛАВЛЕНИЕ
B4: Приобщение к искусству | C4: Конструктивная деятельность | D4: Изобразительная деятельность | E4: Музыкальная деятельность | F4: Театрализованная деятельность | G4: Культурно-досуговая деятельность | H4: Средний балл/уровень
B5: 1 | C5: 2 | D5: 3 | E5: 4 | F5: 5 | G5: 6 | H5: 7
A6: начало | B6: ='ХЭ-1'!Q30 -> 1.57 | C6: ='ХЭ-2'!M30 -> 1.73 | D6: ='ХЭ-3.1'!V30 -> 0.87 | E6: ='ХЭ-4'!AI30 -> 1.63 | F6: ='ХЭ-5'!I30 -> 0.78 | G6: ='ХЭ-5'!O30 -> 1.00 | H6: =(B6+C6+D6+E6+F6+G6)/6 -> 1.26
A7: конец | B7: ='ХЭ-1'!R30 -> 2.14 | C7: ='ХЭ-2'!N30 -> 2.47 | D7: ='ХЭ-3.1'!W30 -> 1.22 | E7: ='ХЭ-4'!AJ30 -> 2.38 | F7: ='ХЭ-5'!J30 -> 1.11 | G7: ='ХЭ-5'!P30 -> 1.33 | H7: =(B7+C7+D7+E7+F7+G7)/6 -> 1.77
A28: ВЫВОДЫ:
A29: Начало учебного года:
A43: Конец учебного года:

Sheet ФР-1
A1: Образовательная область «Физическое развитие»
A3: НАПРАВЛЕНИЕ I. ОСНОВНАЯ ГИМНАСТИКА. ПОДВИЖНЫЕ, СПОРТИВНЫЕ ИГРЫ. СПОРТИВНЫЕ УПРАЖНЕНИЯ. | AJ3: ОГЛАВЛЕНИЕ
A5: №п/п | B5: ФИ ребенка | C5: Умеет ходить уверенно вперед и назад, в разных направлениях, по сигналу останавливаться, соблюдать дистанцию | E5: Умеет перестраиваться в колонну по двое, трое, четверо, выдерживать свое местопри перестроении | G5: Умеет двигаться скрестным шагом и выпадами вперед | I5: Бегает уверенно вперед и назад, в разных направлениях, по сигналу останавливается, соблюдает дистанцию | K5: Умеет участвовать в играх-эстафетах, соблюдать правила передвижения | M5: Умеет бегать с изменением скорости и длины шага по образцу и по инстркции | O5: Умеет ходить с мешочком на голове вперед, приставным шагом по веревке на полу или по гимнастической скамейке | Q5: Умеет стоять на носках, поднимать ногу с хлопком под ней, удерживая равновесие | S5: Умеет прыгать на двух ногах с продвижением вперед с зажатым между коленями предметом | U5: Умеет прыгать на двух ногах через скакалку | W5: Умеет прыгать на одной ноге на месте, с продвижением вперед, через веревочку на полу | Y5: Умеет прыгать в длину с места и с разбега | AA5: Умеет продвигаться вперед с отбиванием мяча | AC5: Умеет метать из разных положений в вертикальную, горизонтальную, движущуюся цель, вдаль | AE5: Сохраняет амплитуду и направление движений при выполнении ОРУ | AG5: Знает атрибуты четырех и более спортивных игр (зимних и летних) | AI5: Умеет подлезать под разные предметы на животе и на четвереньках, соотнося свой размер с высотой предмета | AK5: Согласует движения рук и ног при ползании и лазании | AM5: среднее значение
C7: н.г. | D7: к.г. | E7: н.г. | F7: к.г. | G7: н.г. | H7: к.г. | I7: н.г. | J7: к.г. | K7: н.г. | L7: к.г. | M7: н.г. | N7: к.г. | O7: н.г. | P7: к.г. | Q7: н.г. | R7: к.г. | S7: н.г. | T7: к.г. | U7: н.г. | V7: к.г. | W7: н.г. | X7: к.г. | Y7: н.г. | Z7: к.г. | AA7: г. | AB7: к.г. | AC7: н.г. | AD7: к.г. | AE7: н.г. | AF7: к.г. | AG7: н.г. | AH7: к.г. | AI7: н.г. | AJ7: к.г. | AK7: н.г. | AL7: к.г. | AM7: н.г. | AN7: к.г.
A8: 1 | B8: Иванов | C8: 2 | D8: 3 | E8: 2 | F8: 3 | G8: 2 | H8: 3 | I8: 3 | J8: 4 | K8: 2 | L8: 3 | M8: 1 | N8: 2 | O8: 1 | P8: 2 | Q8: 2 | R8: 3 | S8: 2 | T8: 3 | U8: 2 | V8: 3 | W8: 2 | X8: 3 | Y8: 2 | Z8: 3 | AA8: 2 | AB8: 3 | AC8: 1 | AD8: 2 | AE8: 1 | AF8: 2 | AG8: 1 | AH8: 2 | AI8: 2 | AJ8: 3 | AK8: 2 | AL8: 3 | AM8: =(C8+E8+G8+I8+K8+M8+O8+Q8+S8+U8+W8+Y8+AA8+AC8+AE8+AG8+AI8+AK8)/18 -> 1.8 | AN8: =(D8+F8+H8+J8+L8+N8+P8+R8+T8+V8+X8+Z8+AB8+AD8+AF8+AH8+AJ8+AL8)/18 -> 2.8
A9: 2 | B9: Петров | AM9: =(C9+E9+G9+I9+K9+M9+O9+Q9+S9+U9+W9+Y9+AA9+AC9+AE9+AG9+AI9+AK9)/18 -> 0.0 | AN9: 0.0
A10: 3 | B10: Сидоров | AM10: 0.0 | AN10: 0.0
A11: 4 | AM11: 0.0 | AN11: 0.0
A12: 5 | AM12: 0.0 | AN12: 0.0
A13: 6 | AM13: 0.0 | AN13: 0.0
A14: 7 | AM14: 0.0 | AN14: 0.0
A15: 8 | AM15: 0.0 | AN15: 0.0
A16: 9 | AM16: 0.0 | AN16: 0.0
A17: 10 | AM17: 0.0 | AN17: 0.0
A18: 11 | AM18: 0.0 | AN18: 0.0
A19: 12 | AM19: 0.0 | AN19: 0.0
A20: 13 | AM20: 0.0 | AN20: 0.0
A21: 14 | AM21: 0.0 | AN21: 0.0
A22: 15 | AM22: 0.0 | AN22: 0.0
A23: 16 | AM23: 0.0 | AN23: 0.0
A24: 17 | AM24: 0.0 | AN24: 0.0
A25: 18 | AM25: 0.0 | AN25: 0.0
A26: 19 | AM26: 0.0 | AN26: 0.0
A27: 20 | AM27: 0.0 | AN27: 0.0
A28: 21 | AM28: 0.0 | AN28: 0.0
A29: 22 | AM29: 0.0 | AN29: 0.0
A30: 23 | AM30: 0.0 | AN30: 0.0
A31: 24 | AM31: 0.0 | AN31: 0.0
B32: среднее значение: | C32: =(C8+C9+C10+C11+C12+C13+C14+C15+C16+C17+C18+C19+C20+C21+C22+C23+C24+C25+C26+C27+C28+C29+C30+C31)/COUNTA($B$8:$B$31) -> 0.7 | D32: =(D8+D9+D10+D11+D12+D13+D14+D15+D16+D17+D18+D19+D20+D21+D22+D23+D24+D25+D26+D27+D28+D29+D30+D31)/COUNTA($B$8:$B$31) -> 1.0 | E32: 0.7 | F32: 1.0 | G32: 0.7 | H32: 1.0 | I32: 1.0 | J32: 1.3 | K32: 0.7 | L32: 1.0 | M32: 0.3 | N32: 0.7 | O32: 0.3 | P32: 0.7 | Q32: 0.7 | R32: 1.0 | S32: 0.7 | T32: 1.0 | U32: 0.7 | V32: 1.0 | W32: 0.7 | X32: 1.0 | Y32: 0.7 | Z32: 1.0 | AA32: 0.7 | AB32: 1.0 | AC32: 0.3 | AD32: 0.7 | AE32: 0.3 | AF32: 0.7 | AG32: 0.3 | AH32: 0.7 | AI32: 0.7 | AJ32: 1.0 | AK32: 0.7 | AL32: 1.0 | AM32: 0.6 | AN32: 0.9
B34: начало года
C35: всего | D35: норма | E35: ниже нормы | F35: низкий
B36: количество детей | C36: =COUNTA(B8:B31) -> 3 | D36: =COUNTIF(AM8:AM31,">=3,8") -> 0 | E36: =COUNTIFS(AM8:AM31,"<3,7",AM8:AM31,">=2,3") -> 0 | F36: =COUNTIFS(AM8:AM31,"<2,2",AM8:AM31,">0") -> 1
B37: % | C37: 100 | D37: =D36*C37/C36 -> 0 | E37: =E36*C37/C36 -> 0.0 | F37: =F36*C37/C36 -> 33.3
B39: конец года
C40: всего | D40: норма | E40: ниже нормы | F40: низкий
B41: количество детей | C41: =COUNTA(B8:B31) -> 3 | D41: =COUNTIF(AN8:AN31,">=3,8") -> 0 | E41: =COUNTIFS(AN8:AN31,"<3,7",AN8:AN31,">=2,3") -> 1 | F41: =COUNTIFS(AN8:AN31,"<2,2",AN8:AN31,">0") -> 0
B42: % | C42: 100 | D42: =D41*C42/C41 -> 0.0 | E42: =E41*C42/C41 -> 33.3 | F42: =F41*C42/C41 -> 0.0

Sheet ФР-2
A1: НАПРАВЛЕНИЕ 2. ФОРМИРОВАНИЕ ОСНОВ ЗДОРОВОГО ОБРАЗА ЖИЗНИ. АКТИВНЫЙ ОТДЫХ | U1: ОГЛАВЛЕНИЕ
A3: №п/п | B3: ФИ ребенка | C3: Включается в подвижные игры, соблюдает правила | E3: Знает полезные и неполезные для здоровья продукты | G3: Знает назначение частей тела и может рассказать об этом | I3: Умеет воспроизводить некоторые пальчиковые игры на одной и двух руках | K3: Умеет шнуровать и завязывать бантик | M3: Умеет удерживать двумя пальцами мелкие предметы, переносить и складывать в маленькую емкость | O3: Понимает отраженные движения и воспроизводит в нужную сторону | Q3: Имеет представоения о туризме, правилах безопасности и ориентировки на местности | S3: Осуществляет страховку при преодолении препятствий | U3: Соблюдает правила гигиены и безопасного поведения во время туристической прогулки | W3: среднее значение
C5: н.г. | D5: к.г. | E5: н.г. | F5: к.г. | G5: н.г. | H5: к.г. | I5: н.г. | J5: к.г. | K5: н.г. | L5: к.г. | M5: н.г. | N5: к.г. | O5: н.г. | P5: к.г. | Q5: н.г. | R5: к.г. | S5: н.г. | T5: к.г. | U5: н.г. | V5: к.г. | W5: н.г. | X5: к.г.
A6: 1 | B6: Иванов | C6: 2 | D6: 3 | E6: 3 | F6: 4 | G6: 2 | H6: 3 | I6: 1 | J6: 2 | K6: 2 | L6: 3 | M6: 3 | N6: 4 | O6: 2 | P6: 3 | Q6: 2 | R6: 3 | S6: 2 | T6: 3 | U6: 2 | V6: 3 | W6: =(C6+E6+G6+I6+K6+M6+O6+Q6+S6+U6)/10 -> 2.1 | X6: =(D6+F6+H6+J6+L6+N6+P6+R6+T6+V6)/10 -> 3.1
A7: 2 | B7: Петров | W7: =(C7+E7+G7+I7+K7+M7+O7+Q7+S7+U7)/10 -> 0.0 | X7: 0.0
A8: 3 | B8: Сидоров | W8: 0.0 | X8: 0.0
A9: 4 | W9: 0.0 | X9: 0.0
A10: 5 | W10: 0.0 | X10: 0.0
A11: 6 | W11: 0.0 | X11: 0.0
A12: 7 | W12: 0.0 | X12: 0.0
A13: 8 | W13: 0.0 | X13: 0.0
A14: 9 | W14: 0.0 | X14: 0.0
A15: 10 | W15: 0.0 | X15: 0.0
A16: 11 | W16: 0.0 | X16: 0.0
A17: 12 | W17: 0.0 | X17: 0.0
A18: 13 | W18: 0.0 | X18: 0.0
A19: 14 | W19: 0.0 | X19: 0.0
A20: 15 | W20: 0.0 | X20: 0.0
A21: 16 | W21: 0.0 | X21: 0.0
A22: 17 | W22: 0.0 | X22: 0.0
A23: 18 | W23: 0.0 | X23: 0.0
A24: 19 | W24: 0.0 | X24: 0.0
A25: 20 | W25: 0.0 | X25: 0.0
A26: 21 | W26: 0.0 | X26: 0.0
A27: 22 | W27: 0.0 | X27: 0.0
A28: 23 | W28: 0.0 | X28: 0.0
A29: 24 | W29: 0.0 | X29: 0.0
B30: среднее значение: | C30: =(C6+C7+C8+C9+C10+C11+C12+C13+C14+C15+C16+C17+C18+C19+C20+C21+C22+C23+C24+C25+C26+C27+C28+C29)/COUNTA($B$6:$B$29) -> 0.7 | D30: =(D6+D7+D8+D9+D10+D11+D12+D13+D14+D15+D16+D17+D18+D19+D20+D21+D22+D23+D24+D25+D26+D27+D28+D29)/COUNTA($B$6:$B$29) -> 1.0 | E30: 1.0 | F30: 1.3 | G30: 0.7 | H30: 1.0 | I30: 0.3 | J30: 0.7 | K30: 0.7 | L30: 1.0 | M30: 1.0 | N30: 1.3 | O30: 0.7 | P30: 1.0 | Q30: 0.7 | R30: 1.0 | S30: 0.7 | T30: 1.0 | U30: 0.7 | V30: 1.0 | W30: 0.7 | X30: 1.0
B32: начало года
C33: всего | D33: норма | E33: ниже нормы | F33: низкий
B34: количество детей | C34: =COUNTA(B6:B29) -> 3 | D34: =COUNTIF(W6:W29,">=3,8") -> 0 | E34: =COUNTIFS(W6:W29,"<3,7",W6:W29,">=2,3") -> 0 | F34: =COUNTIFS(W6:W29,"<2,2",W6:W29,">0") -> 1
B35: % | C35: 100 | D35: =D34*C35/C34 -> 0 | E35: =E34*C35/C34 -> 0.0 | F35: =F34*C35/C34 -> 33.3
B38: конец года
C39: всего | D39: норма | E39: ниже нормы | F39: низкий
B40: количество детей | C40: =COUNTA(B5:B28) -> 3 | D40: =COUNTIF(X6:X29,">=3,8") -> 0 | E40: =COUNTIFS(X6:X29,"<3,7",X6:X29,">=2,3") -> 1 | F40: =COUNTIFS(X6:X29,"<2,2",X6:X29,">0") -> 0
B41: % | C41: 100 | D41: =D40*C41/C40 -> 0.0 | E41: =E40*C41/C40 -> 33.3 | F41: =F40*C41/C40 -> 0.0

Sheet ИТОГ ФР
B1: Обобщение результатов педагогической диагностики по направлениям
C2: ОО «Физическое развитие»
F3: ОГЛАВЛЕНИЕ
C4: Основная гимнастика. Подвижные, спортивные игры. Спортивные упражнения | D4: Формирование основ здорового образа жизни. Активный отдых | E4: Средний балл/уровень
C5: 1 | D5: 2 | E5: 3
B6: начало | C6: ='ФР-1'!AM32 -> 0.59 | D6: ='ФР-2'!W30 -> 0.70 | E6: =(C6+D6)/2 -> 0.65
B7: конец | C7: ='ФР-1'!AN32 -> 0.93 | D7: ='ФР-2'!X30 -> 1.03 | E7: =(C7+D7)/2 -> 0.98
A28: ВЫВОДЫ:
A29: Начало учебного года:
A43: Конец учебного года:

Sheet ОБЩИЙ ИТОГ
A1: Обобщение результатов педагогической диагностики по всем образовательным областям
A2: на 202__/2___ учебный год
H3: ОГЛАВЛЕНИЕ
C4: Речевое развитие | D4: Познавательное развитие | E4: Социально­коммуникативное развитие | F4: Художественно­эстетическое развитие | G4: Физическое развитие | H4: Средний балл/уровень
C5: 1 | D5: 2 | E5: 3 | F5: 4 | G5: 5 | H5: 6
B6: начало | C6: ='ИТОГ РР'!H7 -> 0.88 | D6: ='ИТОГ ПР'!D6 -> 0.46 | E6: ='ИТОГ СК'!F5 -> 0.83 | F6: ='ИТОГ ХЭ'!H6 -> 1.26 | G6: ='ИТОГ ФР'!E6 -> 0.65 | H6: =(C6+D6+E6+F6+G6)/5 -> 0.82
B7: конец | C7: ='ИТОГ РР'!H8 -> 1.20 | D7: ='ИТОГ ПР'!D7 -> 0.67 | E7: ='ИТОГ СК'!F6 -> 1.09 | F7: ='ИТОГ ХЭ'!H7 -> 1.77 | G7: ='ИТОГ ФР'!E7 -> 0.98 | H7: =(C7+D7+E7+F7+G7)/5 -> 1.14
A28: Основные выводы по результатам педагогической диагностики
A30: Педагогический процесс организован на _________ уровне.
A31: Следует обратить внимание на трудности реализации образовательной(-ых) области(-ей) «_________ развитие» в следующих аспектах:
A32: 1.
A33: 2.
A34: 3.
A37: В индивидуальной помощи нуждаются следующие дети:
A38: 1. «Речевое развитие»:
A45: 2. «Познавательное развитие»:
A52: 3. «Социально-коммуникативное развитие»:
A59: 4. «Художественно-эстетическое развитие»:
A66: 5. «Физическое развитие»:
